Cogmind - Beta 9.6 @@@ ROGUE MODE // 2020.08.29 @ 22:16:08 Player: Alexbot Result: Destroyed 0B10! Performance ------------- Evolutions (9) 4500 Regions Visited (33) 6600 Robots Destroyed (402) 2010 Value Destroyed (20934) 20934 Prototype IDs (123) 2460 Alien Tech Used (5) 1000 Bonus (27859) 27859 TOTAL SCORE: 65363 Bonus ------- Triggered High Security 500 High Alert Combat Kills 8033 Follower Combat Kills 4491 Network Hubs Disabled 400 Aligned with FarCom 300 Met Data Miner 300 Met Imprinter 300 Was Imprinted 300 Met Zhirov 300 Built Enhanced Grunts 300 A7 Reached Mainframe 300 Met R17 at Cetus 500 Used Core Reset Matrix 3000 Met Sigix 2000 Escaped with Sigix 5000 Win 3000 Friendly Fire -1165 Cogmind --------- Core Integrity 230/1600 Matter 227/300 Energy 1372/1380 System Corruption 2% Temperature Cool (32) Movement Hovering (48) Location Tau Ceti IV Orbit Parts ------- > --- POWER (1) -------- Light Particle Reactor > --- PROPULSION (4) --- Combat Linear Gravjet Combat Linear Gravjet Combat Linear Gravjet Combat Linear Gravjet > --- UTILITY (17) ----- Advanced Heat Sink Large Storage Unit Zionite Biocell Array Experimental Optical Array Makeshift Sensor Array Advanced Signal Interpreter 0b10 Decoder Chip [Generic] 0b10 Decoder Chip [Scout] Advanced Core Analyzer Reaction Control System Improved Weapon Shielding Zionite Shade Armor Heavy Regenerative Plating Advanced Force Field Advanced Hacking Suite Improved System Shield > --- WEAPON (3) ------- Enhanced Nova Cannon Enhanced Nova Cannon Ragnarok Missile Launcher > --- INVENTORY (10) --- Advanced Heat Sink Advanced ECM Suite Improved Weapon Shielding Advanced Force Field Gamma Rifle Gamma Rifle Linear Accelerator Sigix Containment Pod Peak State ------------ > --- POWER ------------ Quantum Reactor > --- PROPULSION ------- Advanced Medium Treads Enhanced Biometal Leg Enhanced Biometal Leg Enhanced Biometal Leg > --- UTILITY ---------- Experimental Coolant Injector Large Storage Unit Large Storage Unit Lightpack 2.0 Advanced Signal Interpreter Advanced Core Analyzer Advanced Weapon Cycler Nanoactuators Zionite Weapon Casing Centrium Medium Armor Plating Centrium Medium Armor Plating EM Dispersion Field Improved Hacking Suite Advanced Hacking Suite System Shield > --- WEAPON ----------- Molecular Scythe Plasma Lance > --- INVENTORY -------- Antigrav System Antigrav System Improved Linear Gravjet Compact Battery Matter Compressor Advanced Terrain Scan Processor Experimental Melee Analysis Suite Nanoactuators Advanced Actuator Array Force Booster Advanced ECM Suite Experimental Phase Shifter Improved Propulsion Shielding Zionite Weapon Casing Advanced Powered Armor Advanced Powered Armor Advanced Force Field Dimensional Node Initializer Transdimensional Reconstructor Transdimensional Reconstructor Transdimensional Reconstructor Transdimensional Reconstructor EMDS Core Cannon Hypercooled Linear Accelerator Smartbomb Launcher Improved Remote Datajack Improved Plasma Cutter Core Stripper Molecular Scythe Sigix Containment Pod [Rating: 194] Favorites ----------- Power Micro Fission Core Engine Ion Engine Power Core Micro Fission Core Reactor Light Particle Reactor Propulsion Combat Airjet Treads Armored Treads Leg Improved Carbon-fiber Leg Wheel Armored Huge Wheel Hover Unit Combat Airjet Flight Unit Impulse Thruster Array Utility Large Storage Unit Device Long-range Sensor Array Storage Large Storage Unit Processor Advanced Signal Interpreter Hackware Advanced Hacking Suite Protection Experimental Utility Shielding Weapon Power Sword Energy Gun Heavy EM Pulse Gun Energy Cannon Nova Cannon Ballistic Gun Improved KE Penetrator Ballistic Cannon Gauss Cannon Launcher Proton Missile Launcher Special Weapon Improved Remote Datajack Slashing Weapon Power Sword Piercing Weapon Plasma Lance Build | -11 -10 -10 -10 -9 -8 -7 -7 -7 -7 -6 -6 -6 -6 -6 -5 -5 -5 -5 -5 -5 -5 -4 -4 -4 -4 -4 -4 -3 -3 -2 -2 -2 -1 ------- Run | Scr Mat Min Exi Min Mat Fac Low Low Dat Pro Fac Low Low Zio Pro Fac Was Fac Upp Upp Zhi Pro Fac Ext Cet Arc Hub Res Qua Res Tes Sec Acc Slots Evolved 18 | . . . . . 4 2 . . . . 2 . . . . 2 . . . . . . 2 . . . . 2 . 2 . . 2 Power . | . . . . . . . . . . . . . . . . . . . . . . . . . . . . . . . . . . Propulsion 2 | . . . . . . . . . . . 2 . . . . . . . . . . . . . . . . . . . . . . Utility 15 | . . . . . 4 2 . . . . . . . . . 2 . . . . . . 2 . . . . 2 . 2 . . 1 Weapon 1 | . . . . . . . . . . . . . . . . . . . . . . . . . . . . . . . . . 1 Parts Attached 673 | . 9 . . . 14 43 4 13 . 12 28 2 . 2 . 22 5 59 3 . 8 7 28 14 16 3 37 98 95 29 14 39 69 Power 29 | . 1 . . . 1 4 1 . . . 3 . . . . . . 3 . . . . 1 1 . . . 3 3 1 1 4 2 Engine 5 | . 1 . . . 1 1 1 . . . . . . . . . . . . . . . 1 . . . . . . . . . . Core 10 | . . . . . . 3 . . . . 3 . . . . . . 3 . . . . . 1 . . . . . . . . . Reactor 14 | . . . . . . . . . . . . . . . . . . . . . . . . . . . . 3 3 1 1 4 2 Propulsion 117 | . 3 . . . 3 8 1 1 . 2 6 . . . . 6 . 3 . . . . 2 . 3 . 3 26 21 6 1 9 13 Treads 32 | . 3 . . . 3 5 . . . 1 1 . . . . . . . . . . . . . . . 1 5 8 1 . 4 . Leg 25 | . . . . . . 2 1 1 . . . . . . . . . . . . . . . . . . . . 13 1 . 5 2 Wheel 2 | . . . . . . 1 . . . 1 . . . . . . . . . . . . . . . . . . . . . . . Hover 54 | . . . . . . . . . . . 5 . . . . 6 . 3 . . . . 2 . 3 . 2 21 . 4 1 . 7 Flight 4 | . . . . . . . . . . . . . . . . . . . . . . . . . . . . . . . . . 4 Utility 358 | . 2 . . . 5 18 . 1 . 3 10 . . . . 11 4 40 3 . 7 . 17 13 10 1 28 50 57 14 9 15 40 Device 198 | . . . . . 1 6 . . . 1 3 . . . . 2 3 20 2 . 2 . 8 6 5 . 18 39 35 8 8 7 24 Storage 32 | . 2 . . . 2 . . . . . 3 . . . . 4 . . . . 4 . . 1 4 . . 3 3 2 . 1 3 Processor 11 | . . . . . . 1 . . . 1 . . . . . 1 . 1 . . . . . . . . . . 1 2 . . 4 Hackware 12 | . . . . . . 1 . . . . 1 . . . . 1 . 3 . . . . 1 . . . . 2 1 . . . 2 Protection 105 | . . . . . 2 10 . 1 . 1 3 . . . . 3 1 16 1 . 1 . 8 6 1 1 10 6 17 2 1 7 7 Artifact . | . . . . . . . . . . . . . . . . . . . . . . . . . . . . . . . . . . Weapon 169 | . 3 . . . 5 13 2 11 . 7 9 2 . 2 . 5 1 13 . . 1 7 8 . 3 2 6 19 14 8 3 11 14 Energy Gun 30 | . 3 . . . 2 . . 5 . 2 . . . . . . . 1 . . . . 2 . . . 1 4 2 . . 3 5 Energy Cannon 28 | . . . . . . 2 1 1 . 2 3 . . . . . . 3 . . . . . . . . . 2 5 . . 4 5 Ballistic Gun 10 | . . . . . 1 . . . . 2 1 . . . . . . . . . . . . . . 2 3 . . . . . 1 Ballistic Cannon 6 | . . . . . . 1 . . . . . . . . . . . . . . . . . . . . . . 1 . . 3 1 Launcher 36 | . . . . . 1 4 1 2 . . 1 . . . . 2 . 4 . . . 3 2 . 2 . . 8 2 1 1 . 2 Special Weapon 7 | . . . . . . . . . . . . . . 1 . . 1 1 . . 1 2 1 . . . . . . . . . . Impact Weapon . | . . . . . . . . . . . . . . . . . . . . . . . . . . . . . . . . . . Slashing Weapon 41 | . . . . . 1 6 . 3 . 1 2 2 . 1 . 3 . 4 . . . 2 3 . 1 . 2 5 4 1 . . . Piercing Weapon 11 | . . . . . . . . . . . 2 . . . . . . . . . . . . . . . . . . 6 2 1 . Special Melee Weapon . | . . . . . . . . . . . . . . . . . . . . . . . . . . . . . . . . . . Unidentified Prototypes 40 | . . . . . . . . . . . 1 . . . . 1 . . . . 3 . . . 5 . 2 2 11 2 1 6 6 Parts Lost 123 | . 4 . . . 8 16 2 1 . 1 1 . . . . 1 . 4 . . . . 1 1 . . 1 7 22 2 16 22 13 Power 16 | . 1 . . . 2 1 1 . . . . . . . . . . . . . . . 1 . . . . 3 1 1 2 3 . Propulsion 36 | . 1 . . . 1 3 1 1 . 1 . . . . . 1 . . . . . . . . . . . 4 10 . 2 5 6 Utility 52 | . . . . . 1 11 . . . . 1 . . . . . . 2 . . . . . 1 . . 1 . 11 1 12 10 1 Weapon 19 | . 2 . . . 4 1 . . . . . . . . . . . 2 . . . . . . . . . . . . . 4 6 Highest Loss Streak 11 | . 3 . . . 4 9 1 1 . 1 1 . . . . 1 . 1 . . . . 1 1 . . 1 3 11 2 7 11 5 Average Slot Usage (%) 91 | . 95 100 100 100 87 96 99 89 100 83 94 100 100 100 100 97 96 96 100 100 95 97 96 90 93 94 90 88 90 89 79 39 73 Engine 2 | . 13 14 14 14 8 . 7 7 7 7 1 . . . . . . . . . . . . 1 . . . . . . . . . Core 2 | . . . . . . 6 . . . . 4 6 6 6 6 5 5 5 5 5 5 5 4 3 5 5 5 1 . . . . . Treads 5 | . 6 28 28 28 17 13 . . . . . . . . . . . . . . . . . . . . . 1 6 1 . 5 . Leg 2 | . 21 . . . . . 14 15 15 5 . . . . . . . . . . . . . . . . . . 10 12 . 2 . Hover 10 | . . . . . . . . . . . 21 26 26 26 26 22 23 23 23 23 23 23 21 21 20 21 19 14 . 1 7 . 11 Device 8 | . . . . . 6 10 23 16 15 9 7 6 6 6 6 5 1 8 11 11 9 11 9 7 7 5 8 11 14 14 17 6 12 Storage 20 | . 25 28 28 28 32 30 30 30 30 30 21 20 20 20 20 18 23 23 23 23 20 23 21 16 17 15 15 17 16 15 13 . 4 Processor 6 | . . . . . . . 7 7 7 7 6 6 6 6 6 9 11 9 11 11 11 11 10 10 10 10 10 9 4 10 12 4 12 Hackware 6 | . . . . . . 2 . . . . 1 6 6 6 6 10 11 9 5 5 5 5 9 10 10 10 10 19 15 13 9 4 8 Protection 7 | . . . . . 7 13 . 5 7 4 11 13 13 13 13 9 5 4 5 5 4 5 9 10 10 14 9 3 7 9 6 5 9 Energy Gun 3 | . 4 28 28 28 6 . . . . . . . . . . . . . . . . . 1 . . . . 1 . . . 1 1 Energy Cannon 1 | . . . . . . . 6 . . 5 1 . . . . . . 1 5 5 . . . . . . . . 2 . . 1 7 Ballistic Gun 1 | . 21 . . . 6 1 . . . 5 5 . . . . . . . . . . . . . . 9 5 . . . . . . Slashing Weapon 4 | . . . . . . 12 . 1 15 1 2 12 13 9 13 10 7 6 5 5 5 3 5 7 2 . 3 3 4 2 . . . Naked Turns . | . . . . . . . . . . . . . . . . . . . . . . . . . . . . . . . . . . Heaviest Build 169 | 11 42 42 42 42 126 169 131 131 129 134 131 74 73 74 73 81 83 125 84 84 80 82 118 125 64 73 96 85 108 96 71 73 128 Greatest Support 160 | 20 40 40 40 40 40 40 36 36 36 36 77 77 77 77 77 88 88 91 91 91 91 91 91 91 97 97 103 108 136 118 72 160 128 Greatest Overweight (x) 6 | . 1 1 1 1 3 6 3 3 3 6 4 . . . . 1 . 1 . . . . 1 1 . . 1 2 2 1 1 . 4 Average Overweight (x) . | . . 1 1 1 1 2 3 3 3 3 . . . . . . . . . . . . . . . . . . . . . . . Largest Inventory Capacity 48 | . 16 16 16 16 32 32 32 32 32 32 32 22 22 22 22 28 28 28 28 28 48 28 28 48 36 36 36 36 36 36 36 4 10 Average Capacity 26 | . 14 16 16 16 29 32 32 32 32 32 23 22 22 22 22 23 28 28 28 28 28 28 28 33 36 36 36 36 36 36 23 4 5 Most Carried 36 | . 7 8 16 16 30 32 32 32 26 29 28 22 22 22 22 23 28 28 28 28 30 28 28 30 36 36 36 36 36 36 35 4 10 Average Carried 24 | . 6 6 12 16 19 30 30 30 26 26 22 22 22 22 22 22 25 27 27 28 24 27 27 27 31 36 34 33 33 35 22 3 5 Final Capacity 36 | 6 16 16 16 16 32 32 32 32 32 32 22 22 22 22 22 28 28 28 28 28 28 28 28 36 36 36 36 36 36 36 4 4 10 Final Carried 36 | 6 4 8 16 16 30 32 31 26 26 26 22 22 22 22 22 23 28 28 28 28 28 28 28 27 36 36 34 33 36 35 4 4 9 Class Distribution -------------------- 39% | Messiah-Mutant 27% | Hauler-Mutant 19% | Messiah-Scout 12% | Mutant Dominant Class ---------------- Mutant | -10/Materials Mutant | -10/Mines Mutant | -10/Exiles Mutant | -9/Mines Hauler-Mutant | -8/Materials Hauler-Mutant | -7/Factory Hauler-Mutant | -7/Lower Caves Hauler-Mutant | -7/Lower Caves Hauler-Mutant | -7/Data Miner Hauler-Mutant | -6/Proximity Caves Hauler-Mutant | -6/Factory Hauler-Mutant | -6/Lower Caves Hauler-Mutant | -6/Lower Caves Messiah-Mutant | -6/Zion Messiah-Mutant | -5/Proximity Caves Messiah-Mutant | -5/Factory Messiah-Mutant | -5/Waste Messiah-Scout | -5/Factory Messiah-Scout | -5/Upper Caves Messiah-Scout | -5/Upper Caves Messiah-Scout | -5/Zhirov Messiah-Scout | -4/Proximity Caves Messiah-Scout | -4/Factory Messiah-Scout | -4/Extension Messiah-Mutant | -4/Cetus Messiah-Mutant | -4/Archives Messiah-Scout | -4/Hub_04(d) Messiah-Mutant | -3/Research Messiah-Mutant | -3/Quarantine Messiah-Mutant | -2/Research Messiah-Mutant | -2/Testing Messiah-Mutant | -2/Section 7 Messiah-Mutant | -1/Access Resources | -11 -10 -10 -10 -9 -8 -7 -7 -7 -7 -6 -6 -6 -6 -6 -5 -5 -5 -5 -5 -5 -5 -4 -4 -4 -4 -4 -4 -3 -3 -2 -2 -2 -1 ----------- Run | Scr Mat Min Exi Min Mat Fac Low Low Dat Pro Fac Low Low Zio Pro Fac Was Fac Upp Upp Zhi Pro Fac Ext Cet Arc Hub Res Qua Res Tes Sec Acc Matter Collected 11829 | 200 243 40 . . 163 786 31 449 . 324 262 131 . . 41 214 156 1013 . 43 192 277 550 211 211 62 512 2102 1443 200 262 717 994 Remotely . | . . . . . . . . . . . . . . . . . . . . . . . . . . . . . . . . . . Salvage Created 18287 | . 336 294 . . 384 1924 53 877 . 497 526 . . . 190 328 350 994 . . 97 514 693 233 305 100 1275 2518 2279 306 519 1192 1503 Parts 938 | . 36 12 . . 24 104 9 41 . 23 27 . . . 10 15 10 60 . . . 27 40 11 16 2 61 145 121 23 20 43 58 Haulers Intercepted 7 | . . . . . . . . . . . . . . . . 2 . . . . . 1 . . . . 1 1 . . 1 . 1 Recyclers Shooed 5 | . 1 . . . . 1 . . . . . . . . . . . 2 . . . . . . . . . 1 . . . . . Parts Field Recycled . | . . . . . . . . . . . . . . . . . . . . . . . . . . . . . . . . . . Retrieved Matter . | . . . . . . . . . . . . . . . . . . . . . . . . . . . . . . . . . . Parts Self-Destructed 85 | . . . . . . . 5 32 . 21 . . . . 13 . . . . . . 14 . . . . . . . . . . . Prevented 7 | . . . . . . . . . . . . . . . 7 . . . . . . . . . . . . . . . . . . Kills | -11 -10 -10 -10 -9 -8 -7 -7 -7 -7 -6 -6 -6 -6 -6 -5 -5 -5 -5 -5 -5 -5 -4 -4 -4 -4 -4 -4 -3 -3 -2 -2 -2 -1 ------- Run | Scr Mat Min Exi Min Mat Fac Low Low Dat Pro Fac Low Low Zio Pro Fac Was Fac Upp Upp Zhi Pro Fac Ext Cet Arc Hub Res Qua Res Tes Sec Acc Combat Hostiles Destroyed 328 | . 13 4 . . 8 45 4 22 . 11 12 . . . 3 5 . 28 . . . 19 9 4 4 1 13 37 32 7 5 19 23 Melee 91 | . . . . . . 28 . 2 . . 7 . . . 3 3 . 6 . . . . 4 4 . . 7 11 8 2 5 1 . Guns 64 | . 13 4 . . 4 . . 12 . 9 3 . . . . . . 3 . . . . 1 . . 1 5 1 2 . . 1 5 Cannons 36 | . . . . . . 1 1 . . 2 . . . . . . . 1 . . . . . . . . . 1 4 . . 14 12 AOE 107 | . . . . . 4 16 3 8 . . 2 . . . . 2 . 16 . . . 19 4 . 2 . 1 15 5 5 . . 5 Classes Destroyed 18 | . 3 3 . . 4 4 1 . . . . . . . . 1 . 2 . . . . . . . . . . . . . . . Worker 20 | . 2 1 . . 1 5 . . . . . . . . . . . . . . . . 3 . . . 2 6 . . . . . Builder 14 | . . 2 . . 1 2 . . . . . . . . . . . . . . . . . . . . 2 6 . 1 . . . Tunneler 3 | . . . . . 1 . . . . . . . . . . . . . . . . . . . . . . 2 . . . . . Hauler 7 | . . . . . . . . . . . . . . . . 2 . . . . . 1 . . . . 1 1 . . 1 . 1 Recycler 7 | . . 1 . . . 1 . . . . . . . . . . . . . . . . 2 . . . . 3 . . . . . Operator 4 | . . . . . 1 1 . . . . . . . . . . . 1 . . . . . . . . 1 . . . . . . Watcher 15 | . . . . . 1 1 . . . . . . . . . 1 . 1 . . . . . . 2 . 2 2 1 1 1 1 1 Swarmer 82 | . 9 . . . . 6 3 3 . 4 4 . . . . 4 . 10 . . . 10 4 . 2 . . 13 1 5 . . 4 Saboteur 3 | . . . . . . . . . . . . . . . . . . 2 . . . . . . . . . 1 . . . . . Grunt 103 | . 4 3 . . 6 22 . 8 . 3 5 . . . 1 . . 8 . . . 8 1 2 . . 3 8 6 . 1 6 8 Brawler 12 | . . . . . . 4 . 3 . . 1 . . . . . . . . . . 1 . . . . . 1 1 . . 1 . Duelist 14 | . . . . . . 2 . 6 . . . . . . . . . . . . . . . . . . . 1 4 . . . 1 Protector 1 | . . . . . . 1 . . . . . . . . . . . . . . . . . . . . . . . . . . . Sentry 31 | . . . . . 2 5 . 1 . 1 . . . . . 1 . 1 . . . . . . . 1 5 5 3 1 1 2 2 Hunter 15 | . . . . . . . . . . . . . . . . . . 1 . . . . . . . . . 2 2 1 2 5 2 Programmer 45 | . . . . . . 5 . . . 2 2 . . . 2 . . 6 . . . . 4 2 . . 2 6 2 . 1 5 6 Cetus Guard 2 | . . . . . . . . . . . . . . . . . . . . . . . . . 2 . . . . . . . . Quarantine Guard 10 | . . . . . . . . . . . . . . . . . . . . . . . . . . . . . 10 . . . . Lightning 6 | . . . . . . . . . . . . . . . . . . . . . . . . . . . 3 . 3 . . . . Thief 1 | . . . . . . . 1 . . . . . . . . . . . . . . . . . . . . . . . . . . Master Thief 2 | . . . . . . . . 1 . 1 . . . . . . . . . . . . . . . . . . . . . . . Assembled 5 | . . 1 . . . . . . . . . . . . . . . . . . . . . . . . . . . . . . 4 Best Kill Streak 11 | . 5 3 . . 9 8 3 6 . 4 3 . . . 2 2 . 10 . . . 6 5 2 2 1 11 9 8 7 2 6 5 Combat Bots Only 9 | . 5 2 . . 5 6 3 6 . 4 3 . . . 2 2 . 9 . . . 5 4 2 2 1 2 7 8 5 2 6 5 Max Kills in Single Turn 6 | . 1 1 . . 2 4 3 2 . 1 1 . . . 1 2 . 4 . . . 5 5 1 2 1 5 5 3 6 1 1 3 Gunslinging . | . . . . . . . . . . . . . . . . . . . . . . . . . . . . . . . . . . Exploded 5 | . . . . . 2 4 3 2 . . 1 . . . . 2 . 4 . . . 5 4 . 2 . 1 3 3 4 . . 3 Melee 1 | . . . . . . 1 . 1 . . 1 . . . 1 1 . 1 . . . . 1 1 . . 1 1 1 1 1 1 . Uniques/NPCs Destroyed . | . . . . . . . . . . . . . . . . . . . . . . . . . . . . . . . . . . Combat | -11 -10 -10 -10 -9 -8 -7 -7 -7 -7 -6 -6 -6 -6 -6 -5 -5 -5 -5 -5 -5 -5 -4 -4 -4 -4 -4 -4 -3 -3 -2 -2 -2 -1 -------- Run | Scr Mat Min Exi Min Mat Fac Low Low Dat Pro Fac Low Low Zio Pro Fac Was Fac Upp Upp Zhi Pro Fac Ext Cet Arc Hub Res Qua Res Tes Sec Acc Damage Taken 33895 | . 598 132 . . 861 4608 71 435 . 414 657 . . . 194 772 23 1888 . . . 71 439 538 266 54 1561 2820 4928 1009 1887 6151 3518 Core 5122 | . 116 16 . . 32 495 . 68 . 53 50 . . . 45 149 . 252 . . . . 88 87 76 . 169 345 534 47 562 568 1370 Absorbed by Shields 3321 | . . . . . . . 27 158 . 156 139 . . . . . . . . . . . . 32 77 . . 764 1089 . . . 879 Reduced by Siege Mode 53 | . . . . . . . . . . . . . . . . . . . . . . . . . . . 1 . . . . 52 . Core Remaining (%) 50 | 100 . . . 47 94 . . . . 12 . . . . 88 . . . . . . 59 . . . . 63 . 23 . . 4 14 Volleys Fired 716 | . 52 14 . . 27 30 8 9 . 21 13 . . 3 . 6 11 25 . . . 15 7 . 10 4 54 60 95 3 . 99 150 Largest 3 | . 2 2 . . 2 2 2 1 . 2 2 . . 1 . 1 1 1 . . . 1 1 . 1 2 2 1 1 1 . 2 3 Hottest 308 | . 95 95 . . 110 128 128 36 . 108 118 . . 40 . 80 20 80 . . . 46 65 . 39 70 70 94 300 70 . 170 308 Shots Fired 1048 | . 81 28 . . 43 40 18 74 . 65 23 . . 3 . 6 11 43 . . . 15 7 . 10 8 90 60 96 3 . 129 195 Gun 492 | . 81 28 . . 39 . . 65 . 44 11 . . . . . . 18 . . . . 6 . . 8 90 7 7 . . 27 61 Cannon 414 | . . . . . . 21 17 . . 21 10 . . . . . . 13 . . . . . . . . . 15 84 1 . 102 130 Launcher 128 | . . . . . 4 19 1 9 . . 2 . . . . 6 . 12 . . . 15 1 . 10 . . 38 5 2 . . 4 Special 14 | . . . . . . . . . . . . . . 3 . . 11 . . . . . . . . . . . . . . . . Kinetic 276 | . 71 . . . 10 11 7 . . 22 11 . . . . . . . . . . . . . . 8 57 . . . . 65 14 Thermal 416 | . 5 14 . . 12 10 10 65 . 43 10 . . . . . 11 18 . . . . . . . . 33 . 8 . . 26 151 Explosive 85 | . . . . . 4 19 1 9 . . 2 . . . . 6 . 8 . . . 15 1 . . . . 9 5 2 . . 4 Electromagnetic 268 | . 5 14 . . 17 . . . . . . . . . . . . 17 . . . . 6 . 10 . . 51 83 1 . 38 26 Robot Hit Streak 20 | . 8 9 . . 15 5 5 13 . 13 14 . . 3 . 4 9 17 . . . 2 4 . 5 2 12 20 12 2 . 13 18 Robot Miss Streak 9 | . 6 1 . . 1 3 3 2 . 9 3 . . . . . 1 2 . . . . 1 . 3 1 4 5 3 1 . 3 3 Penetration Max 1 | . . . . . . . . . . . . . . . . . . . . . . . . . . . 1 . . . . 1 . Secondary Targets 2 | . 1 1 . . . . . . . . . . . . . . . . . . . . . . . . . . . . . . . Max Gunslinging Chain 1 | . 1 1 . . . . . . . . . . . . . . . . . . . . . . . . . . . . . . . Autonomous 139 | . . . . . . . . 65 . 22 . . . . . . . 18 . . . . . . . . 34 . . . . . . Shots Hit Robots 1036 | . 41 18 . . 28 127 7 65 . 52 31 . . 3 9 27 10 53 . . 6 1 25 16 3 4 87 70 100 18 27 99 109 Core Hits 784 | . 19 9 . . 26 108 5 41 . 36 27 . . . 3 15 3 42 . . 1 32 18 5 16 1 56 121 68 17 13 41 61 Critical Hits 37 | . 2 . . . . 6 1 . . . . . . . . 2 . . . . . . . . . . 10 1 4 . 1 7 3 Critical Kills 15 | . 1 . . . . 3 . . . . . . . . . . . . . . . . . . . . 3 . 2 . . 4 2 Critical Parts Destroyed 18 | . 1 . . . . 2 1 . . . . . . . . 2 . . . . . . . . . . 6 1 2 . 1 1 1 Melee Attacks 753 | . . . . . . 149 . 9 . . 49 3 1 . 15 47 . 74 1 . 6 6 60 38 4 . 57 72 63 28 56 15 . Impact . | . . . . . . . . . . . . . . . . . . . . . . . . . . . . . . . . . . Slashing 622 | . . . . . . 149 . 9 . . 16 3 1 . 15 47 . 74 1 . 6 6 60 38 4 . 57 72 63 1 . . . Piercing 131 | . . . . . . . . . . . 33 . . . . . . . . . . . . . . . . . . 27 56 15 . Sneak Attacks 20 | . . . . . . 2 . . . . 1 . . . . 3 . 1 . . . . 4 2 . . 3 1 1 1 1 . . Combat Hostiles 4 | . . . . . . . . . . . . . . . . . . . . . . . . 2 . . 1 . 1 . . . . Follow-up Attacks 34 | . . . . . . 18 . . . . . . . . 2 4 . 1 . . . . . 1 . . . . 5 1 2 . . Damage Inflicted 57541 | . 503 344 . . 1036 6531 306 2626 . 1268 1186 . . . 358 1596 184 3737 . . 722 2630 2001 1011 916 71 4693 7483 5102 1545 1593 4146 5953 Guns 8074 | . 503 304 . . 389 . . 1489 . 855 277 . . . . . . 503 . . . . 153 . . 71 1540 87 193 . . 537 1173 Cannons 9578 | . . . . . . 262 127 . . 413 162 . . . . . . 356 . . . . . . . . . 479 1928 . . 2971 2880 Explosions 21231 | . . 40 . . 647 2475 179 882 . . 272 . . . . 326 . 2044 . . . 2630 621 . 916 . 894 5242 1247 746 . 185 1885 Melee 18411 | . . . . . . 3794 . 255 . . 475 . . . 358 1270 . 834 . . 722 . 1227 1011 . . 2227 1663 1734 799 1593 449 . Ramming 63 | . . . . . . . . . . . . . . . . . . . . . . . . . . . 32 12 . . . 4 15 Kinetic 4186 | . 404 . . . 82 132 24 . . 340 277 . . . . . . . . . . . . . . 71 700 . . . . 1919 237 Thermal 9588 | . 36 143 . . 433 130 103 1489 . 928 162 . . . . . 184 667 . . . . 229 . . . 840 80 193 . . 699 3272 Explosive 17304 | . . . . . 330 2475 179 882 . . 272 . . . . 326 . 1631 . . . 2630 392 . . . . 4124 1247 746 . 185 1885 Electromagnetic 7989 | . 63 201 . . 191 . . . . . . . . . . . . 605 . . . . 153 . 916 . 894 1604 1928 . . 890 544 Impact . | . . . . . . . . . . . . . . . . . . . . . . . . . . . . . . . . . . Slashing 15349 | . . . . . . 3794 . 255 . . 209 . . . 358 1270 . 834 . . 722 . 1227 1011 . . 2227 1663 1734 45 . . . Piercing 3062 | . . . . . . . . . . . 266 . . . . . . . . . . . . . . . . . . 754 1593 449 . Highest Corruption 31 | . . . . . 2 15 15 15 15 18 1 1 1 1 1 2 2 6 6 6 6 6 1 1 1 1 7 5 13 . 7 31 2 Average Corruption 6 | . . . . . 2 10 15 15 15 16 1 1 1 1 1 1 2 4 6 6 6 6 1 1 1 1 1 3 8 . 2 16 1 Corruption Purged . | . . . . . . . . . . . . . . . . . . . . . . . . . . . . . . . . . . Effects 504 | . . . . . 1 103 27 52 9 55 . . 1 . 1 . 3 51 2 4 5 12 3 3 . 3 15 16 69 . 4 60 5 Message Errors 110 | . . . . . . 16 4 12 1 13 . . . . 1 . . 20 1 2 1 4 1 1 . 1 3 6 13 . . 8 2 Matter Fused 90 | . . . . . . 26 6 11 2 6 . . . . . . . 10 . 2 3 2 . . . . . 3 7 . 1 11 . Heat Flow Errors 56 | . . . . . 1 14 2 6 2 6 . . . . . . 1 5 . . 1 2 . . . . . 5 6 . 2 3 . Energy Discharges 50 | . . . . . . 6 2 8 3 3 . . 1 . . . . 8 1 . . 1 . . . 1 2 . 11 . 1 1 1 Parts Rejected 7 | . . . . . . 2 . 1 . . . . . . . . . . . . . . . . . . 1 . 2 . . 1 . Data Loss (minor) 39 | . . . . . . 6 6 4 . 4 . . . . . . 1 5 . . . 3 . 1 . 1 . . 5 . . 3 . Data Loss (major) 11 | . . . . . . 6 . 1 . . . . . . . . . 1 . . . . . . . . . . 1 . . 2 . Misfires 12 | . . . . . . 1 3 . . 2 . . . . . . . . . . . . . . . . . . 4 . . 2 . Alerts 2 | . . . . . . . . 1 . 1 . . . . . . . . . . . . . . . . . . . . . . . Misdirections 37 | . . . . . . 10 3 7 1 9 . . . . . . . . . . . . . . . . . . 3 . . 4 . Targeting Errors 80 | . . . . . . 15 1 1 . 10 . . . . . . 1 2 . . . . 2 1 . . 7 2 14 . . 22 2 Weapon Failures 10 | . . . . . . 1 . . . 1 . . . . . . . . . . . . . . . . 2 . 3 . . 3 . Overload Shots . | . . . . . . . . . . . . . . . . . . . . . . . . . . . . . . . . . . Overflow Damage 2171 | . . . . . 64 372 6 . . 7 12 . . . 12 78 . 82 . . 179 124 151 128 . . 260 233 29 28 33 216 157 Projectiles 306 | . . . . . . 23 6 . . 7 . . . . . . . . . . . . . . . . . . . . . 199 71 Explosions 614 | . . . . . 64 25 . . . . . . . . . 6 . 45 . . . 124 . . . . 58 161 . 28 . 17 86 Melee 1251 | . . . . . . 324 . . . . 12 . . . 12 72 . 37 . . 179 . 151 128 . . 202 72 29 . 33 . . Knockbacks 15 | . . . . . . . 1 . . . . . . . . . . . . . . . . . . . . . . . . 14 . Impact . | . . . . . . . . . . . . . . . . . . . . . . . . . . . . . . . . . . Kinetic 15 | . . . . . . . 1 . . . . . . . . . . . . . . . . . . . . . . . . 14 . Secondary . | . . . . . . . . . . . . . . . . . . . . . . . . . . . . . . . . . . Self-Inflicted Damage 660 | . . 31 . . 41 230 30 55 . . . . . . . . . . . . . . . . 18 . 14 113 119 . . 2 7 Shots 22 | . . 1 . . 1 6 1 1 . . . . . . . . . . . . . . . . 1 . 2 5 4 . . . . Rammed 5 | . . . . . . . . . . . . . . . . . . . . . . . . . . . 1 1 . . . 1 2 Targets Rammed 5 | . . . . . . . . . . . . . . . . . . . . . . . . . . . 1 1 . . . 1 2 Kicked . | . . . . . . . . . . . . . . . . . . . . . . . . . . . . . . . . . . Crushed . | . . . . . . . . . . . . . . . . . . . . . . . . . . . . . . . . . . Highest Temperature 358 | . 138 126 . . 260 345 184 169 138 260 165 . . . . . 120 268 . . 276 198 39 3 26 12 55 271 333 35 239 299 358 Average Temperature 85 | . 61 42 . . 86 117 76 84 75 84 71 . . . . . 66 53 . . 155 83 27 3 6 7 20 83 86 11 98 88 111 Received Heat Transfer 4445 | . 66 57 . . 405 1404 . 72 . 36 149 . . . 24 72 9 336 . . . . 57 67 31 . 219 293 207 18 63 477 383 Effects 3 | . . . . . . . . . . . . . . . . . . . . . . . . . . . . . . . . . 3 Shutdowns 1 | . . . . . . . . . . . . . . . . . . . . . . . . . . . . . . . . . 1 Interference 2 | . . . . . . . . . . . . . . . . . . . . . . . . . . . . . . . . . 2 Siege Activations 4 | . . . . . . . . . . . . . . . . . . . . . . . . . . . 2 . . . . 2 . Total Turns 50 | . . . . . . . . . . . . . . . . . . . . . . . . . . . 14 . . . . 36 . Longest Duration 20 | . . . . . . . . . . . . . . . . . . . . . . . . . . . 11 . . . . 20 . Robots Corrupted 32 | . . . . . . . . . . . . . . . . . . 2 . . . . . . 2 . 1 9 13 . . 3 2 Combat Hostiles 30 | . . . . . . . . . . . . . . . . . . 2 . . . . . . 2 . . 9 13 . . 3 1 Parts Fried 58 | . . . . . . . . . . . . . . . . . . 4 . . . . 1 . 1 . 5 12 25 . . 8 2 Impact Corruptions . | . . . . . . . . . . . . . . . . . . . . . . . . . . . . . . . . . . Robots Melted . | . . . . . . . . . . . . . . . . . . . . . . . . . . . . . . . . . . Combat Hostiles . | . . . . . . . . . . . . . . . . . . . . . . . . . . . . . . . . . . Parts Melted 13 | . . . . . 1 . . 5 . 2 . . . . . . . . . . . . . . . . . . . . . 1 4 Heat Transferred 10944 | . 111 346 . . 509 250 200 1924 . 1351 222 . . . . . 407 755 . . . . 150 . . . 758 150 222 . . 666 2923 Parts Sabotaged . | . . . . . . . . . . . . . . . . . . . . . . . . . . . . . . . . . . Parts Stolen 6 | . . . . . . . . 2 . 4 . . . . . . . . . . . . . . . . . . . . . . . Parts Stripped . | . . . . . . . . . . . . . . . . . . . . . . . . . . . . . . . . . . Power Chain Reactions 6 | . . 1 . . . . . . . . . . . . . . . 2 . . . . 1 . . . . 2 . . . . . Missiles Intercepted . | . . . . . . . . . . . . . . . . . . . . . . . . . . . . . . . . . . Alert | -11 -10 -10 -10 -9 -8 -7 -7 -7 -7 -6 -6 -6 -6 -6 -5 -5 -5 -5 -5 -5 -5 -4 -4 -4 -4 -4 -4 -3 -3 -2 -2 -2 -1 ------- Run | Scr Mat Min Exi Min Mat Fac Low Low Dat Pro Fac Low Low Zio Pro Fac Was Fac Upp Upp Zhi Pro Fac Ext Cet Arc Hub Res Qua Res Tes Sec Acc Peak Influence 1791 | . 220 191 . . 338 1278 . . . . 159 . . . . 508 95 1394 . . . . 312 476 640 505 1542 1791 1598 1092 624 676 1606 Average Influence 529 | . 74 36 . . 192 444 . . . . 56 . . . . 296 94 657 . . . . 177 264 482 287 578 1270 1348 910 524 436 755 Maximum Alert Level 5 | . 1 . . . 1 4 . . . . . . . . . 2 . 4 . . . . 1 2 2 2 4 5 4 3 2 2 5 Low Security (%) 35 | . 91 100 . 100 59 54 . . . . 100 . . . . 6 100 11 . . . . 74 30 6 40 3 . . . . . 13 Level 1 16 | . 8 . . . 40 . . . . . . . . . . 85 . 7 . . . . 25 63 43 30 24 . . . . 24 32 Level 2 18 | . . . . . . 9 . . . . . . . . . 8 . 45 . . . . . 5 50 28 57 . . . 100 75 5 Level 3 12 | . . . . . . 23 . . . . . . . . . . . 28 . . . . . . . . . 42 8 100 . . 12 Level 4 15 | . . . . . . 12 . . . . . . . . . . . 7 . . . . . . . . 14 37 91 . . . 34 Level 5 . | . . . . . . . . . . . . . . . . . . . . . . . . . . . . 9 . . . . . High Security . | . . . . . . . . . . . . . . . . . . . . . . . . . . . . 10 . . . . . Max Security . | . . . . . . . . . . . . . . . . . . . . . . . . . . . . . . . . . . Squads Dispatched 103 | . 2 . . . 2 16 . 1 . . 2 . . . . 2 . 16 . . . . 7 . . . 9 13 5 2 7 7 12 Investigation 11 | . . . . . . . . . . . . . . . . . . 4 . . . . 2 . . . 2 . . . 1 1 1 Extermination 23 | . . . . . . 5 . . . . 1 . . . . 1 . 2 . . . . 3 . . . 1 2 1 . 1 2 4 Reinforcement 25 | . 2 . . . 2 1 . . . . 1 . . . . 1 . 2 . . . . 1 . . . . 4 1 1 3 3 3 Assault 25 | . . . . . . 4 . 1 . . . . . . . . . 5 . . . . . . . . . 5 3 1 2 1 3 Garrison 19 | . . . . . . 6 . . . . . . . . . . . 3 . . . . 1 . . . 6 2 . . . . 1 Intercept . | . . . . . . . . . . . . . . . . . . . . . . . . . . . . . . . . . . Construction Impeded 9 | . . . . . . . . . . . . . . . . . . . . . . . 1 . . . . 3 1 . . 1 3 Haulers Reinforced 5 | . . . . . . . . . . . 1 . . . . . . 1 . . . . . . . . . 1 . 1 1 . . Stealth | -11 -10 -10 -10 -9 -8 -7 -7 -7 -7 -6 -6 -6 -6 -6 -5 -5 -5 -5 -5 -5 -5 -4 -4 -4 -4 -4 -4 -3 -3 -2 -2 -2 -1 --------- Run | Scr Mat Min Exi Min Mat Fac Low Low Dat Pro Fac Low Low Zio Pro Fac Was Fac Upp Upp Zhi Pro Fac Ext Cet Arc Hub Res Qua Res Tes Sec Acc Distress Signals 46 | . 4 1 . . 3 3 . . . . . . . . . 1 . 2 . . . . 3 . 2 . 3 11 1 2 2 2 6 Communications Jammed . | . . . . . . . . . . . . . . . . . . . . . . . . . . . . . . . . . . Distress Signals . | . . . . . . . . . . . . . . . . . . . . . . . . . . . . . . . . . . Times Spotted 724 | . 24 7 . . 19 82 4 27 . 17 25 . . . 10 21 . 80 . . . 3 15 13 15 4 33 74 49 19 23 44 116 Peak Tracking Total 18 | . 6 2 . . 6 11 3 7 . 4 5 . . . 5 6 . 8 . . . 5 3 3 5 2 9 16 8 7 7 8 18 Tactical Retreats 87 | . 1 . . . . 8 . 2 . . 7 . . . 1 7 . 12 . . . . 1 . . . 4 13 2 . 4 4 21 Traps | -11 -10 -10 -10 -9 -8 -7 -7 -7 -7 -6 -6 -6 -6 -6 -5 -5 -5 -5 -5 -5 -5 -4 -4 -4 -4 -4 -4 -3 -3 -2 -2 -2 -1 ------- Run | Scr Mat Min Exi Min Mat Fac Low Low Dat Pro Fac Low Low Zio Pro Fac Was Fac Upp Upp Zhi Pro Fac Ext Cet Arc Hub Res Qua Res Tes Sec Acc Traps Triggered 23 | . 2 . . . 1 2 . . . . 2 . . . . 1 . 1 . . . . 1 . . . 4 5 2 . 1 . 1 Indirectly 3 | . . . . . . . . . . . . . . . . . . . . . . . . . . . 2 1 . . . . . Trap Hack Attempts . | . . . . . . . . . . . . . . . . . . . . . . . . . . . . . . . . . . Triggered . | . . . . . . . . . . . . . . . . . . . . . . . . . . . . . . . . . . Disarmed . | . . . . . . . . . . . . . . . . . . . . . . . . . . . . . . . . . . Reprogrammed . | . . . . . . . . . . . . . . . . . . . . . . . . . . . . . . . . . . Reused . | . . . . . . . . . . . . . . . . . . . . . . . . . . . . . . . . . . Traps Extracted . | . . . . . . . . . . . . . . . . . . . . . . . . . . . . . . . . . . Installed . | . . . . . . . . . . . . . . . . . . . . . . . . . . . . . . . . . . Triggered 1 | . . . . . . . . . . . . . . . . . . . . 1 . . . . . . . . . . . . . Machines | -11 -10 -10 -10 -9 -8 -7 -7 -7 -7 -6 -6 -6 -6 -6 -5 -5 -5 -5 -5 -5 -5 -4 -4 -4 -4 -4 -4 -3 -3 -2 -2 -2 -1 ---------- Run | Scr Mat Min Exi Min Mat Fac Low Low Dat Pro Fac Low Low Zio Pro Fac Was Fac Upp Upp Zhi Pro Fac Ext Cet Arc Hub Res Qua Res Tes Sec Acc Machines Disabled 59 | . . 1 . . 5 4 . . . . . 1 . . . . . 8 . . . . 1 . . 2 16 3 9 2 1 4 2 Max in Single Turn 11 | . . 1 . . 2 1 . . . . . 1 . . . . . 1 . . . . 1 . . 1 11 1 2 1 1 2 1 Garrison Access 8 | . . . . . . 1 . . . . . . . . . 1 . 1 . . . . . . . . 1 1 . 1 . 1 1 Network Hub 2 | . . . . . . . . . . . . . . . . . . . . . . . . . . . 2 . . . . . . Energy Cycler 3 | . . . . . . . . . . . . . . . . . . . . . . . . 2 . . . . . . . . 1 Machines Sabotaged . | . . . . . . . . . . . . . . . . . . . . . . . . . . . . . . . . . . Garrisons Compromised . | . . . . . . . . . . . . . . . . . . . . . . . . . . . . . . . . . . Overloaded Fab Kills . | . . . . . . . . . . . . . . . . . . . . . . . . . . . . . . . . . . Fab Network Shutdowns 3 | . . . . . . 1 . . . . . . . . . . . 1 . . . . . . . . . . . . . . 1 Hacking | -11 -10 -10 -10 -9 -8 -7 -7 -7 -7 -6 -6 -6 -6 -6 -5 -5 -5 -5 -5 -5 -5 -4 -4 -4 -4 -4 -4 -3 -3 -2 -2 -2 -1 --------- Run | Scr Mat Min Exi Min Mat Fac Low Low Dat Pro Fac Low Low Zio Pro Fac Was Fac Upp Upp Zhi Pro Fac Ext Cet Arc Hub Res Qua Res Tes Sec Acc Machines Accessed 55 | . 2 . 1 . 2 7 . . 3 . 5 1 . . . 4 . 11 . . 4 . 3 . . . 2 4 2 1 . 1 2 Terminals 8 | . 2 . . . 2 2 . . . . 2 . . . . . . . . . . . . . . . . . . . . . . Fabricators 10 | . . . . . . 1 . . . . 1 . . . . 1 . 4 . . . . 2 . . . . . . . . . 1 Repair Stations 13 | . . . . . . 1 . . . . 1 . . . . 1 . 5 . . . . 1 . . . . 2 2 . . . . Recycling Units . | . . . . . . . . . . . . . . . . . . . . . . . . . . . . . . . . . . Scanalyzers 4 | . . . . . . 1 . . . . 1 . . . . . . 1 . . . . . . . . . 1 . . . . . Garrison Access 11 | . . . . . . 2 . . . . . . . . . 2 . 1 . . . . . . . . 2 1 . 1 . 1 1 Total Hacks 162 | . 3 . 1 . 4 16 . . 20 . 10 1 . . . 9 . 28 . . 17 . 8 . . . 4 12 15 2 . 2 10 Successful 115 | . 1 . 1 . 1 10 . . 20 . 5 1 . . . 7 . 19 . . 17 . 5 . . . 1 10 9 1 . 1 6 Failed 47 | . 2 . . . 3 6 . . . . 5 . . . . 2 . 9 . . . . 3 . . . 3 2 6 1 . 1 4 Catastrophic 8 | . 1 . . . . 3 . . . . . . . . . 1 . 1 . . . . . . . . . . . . . 1 1 Database Lockouts . | . . . . . . . . . . . . . . . . . . . . . . . . . . . . . . . . . . Manual 187 | . 3 . 1 . 4 1 . . . . 1 . . 1 . 3 . 34 . . . . 11 27 8 . 30 10 9 . 7 9 28 Terminals 13 | . 3 . . . 4 3 . . . . 3 . . . . . . . . . . . . . . . . . . . . . . Fabricators 30 | . . . . . . 3 . . . . 2 . . . . 2 . 10 . . . . 5 . . . . . . . . . 8 Repair Stations 51 | . . . . . . 4 . . . . 2 . . . . 5 . 15 . . . . 3 . . . . 7 15 . . . . Recycling Units . | . . . . . . . . . . . . . . . . . . . . . . . . . . . . . . . . . . Scanalyzers 11 | . . . . . . 3 . . . . 3 . . . . . . 2 . . . . . . . . . 3 . . . . . Garrison Access 18 | . . . . . . 3 . . . . . . . . . 2 . 1 . . . . . . . . 4 2 . 2 . 2 2 Terminal Hacks 43 | . 1 . 1 . 1 1 . . 20 . 1 1 . . . . . . . . 17 . . . . . . . . . . . . Record 11 | . . . . . . . . . 6 . . . . . . . . . . . 5 . . . . . . . . . . . . Part Schematic 9 | . . . . . . . . . 5 . . . . . . . . . . . 4 . . . . . . . . . . . . Robot Schematic 6 | . . . . . . . . . 6 . . . . . . . . . . . . . . . . . . . . . . . . Robot Analysis 4 | . . . . . . . . . . . . . . . . . . . . . 4 . . . . . . . . . . . . Prototype ID Bank 7 | . . . . . . . . . 3 . . . . . . . . . . . 4 . . . . . . . . . . . . Open Door 1 | . . . . . . . . . . . . 1 . . . . . . . . . . . . . . . . . . . . . Branch Access Points 3 | . 1 . . . 1 1 . . . . . . . . . . . . . . . . . . . . . . . . . . . Unreport Threat 1 | . . . . . . . . . . . 1 . . . . . . . . . . . . . . . . . . . . . . EX-Prototype ID Bank 1 | . . . 1 . . . . . . . . . . . . . . . . . . . . . . . . . . . . . . Fabricator Hacks 22 | . . . . . . 2 . . . . 2 . . . . 2 . 8 . . . . 3 . . . . . . . . . 5 Load Schematic 10 | . . . . . . 1 . . . . 1 . . . . 1 . 4 . . . . 2 . . . . . . . . . 1 Build 12 | . . . . . . 1 . . . . 1 . . . . 1 . 4 . . . . 1 . . . . . . . . . 4 Repair Station Hacks 34 | . . . . . . 4 . . . . . . . . . 4 . 9 . . . . 2 . . . . 6 9 . . . . Scan Component 18 | . . . . . . 2 . . . . . . . . . 2 . 5 . . . . 1 . . . . 3 5 . . . . Repair 16 | . . . . . . 2 . . . . . . . . . 2 . 4 . . . . 1 . . . . 3 4 . . . . Recycling Unit Hacks . | . . . . . . . . . . . . . . . . . . . . . . . . . . . . . . . . . . Scanalyzer 9 | . . . . . . 2 . . . . 2 . . . . . . 2 . . . . . . . . . 3 . . . . . Insert Component 6 | . . . . . . 1 . . . . 1 . . . . . . 1 . . . . . . . . . 3 . . . . . Analyze 3 | . . . . . . 1 . . . . 1 . . . . . . 1 . . . . . . . . . . . . . . . Garrison Access Hacks 7 | . . . . . . 1 . . . . . . . . . 1 . . . . . . . . . . 1 1 . 1 . 1 1 Seal Access 7 | . . . . . . 1 . . . . . . . . . 1 . . . . . . . . . . 1 1 . 1 . 1 1 Unauthorized Hacks . | . . . . . . . . . . . . . . . . . . . . . . . . . . . . . . . . . . Terminals . | . . . . . . . . . . . . . . . . . . . . . . . . . . . . . . . . . . Fabricators . | . . . . . . . . . . . . . . . . . . . . . . . . . . . . . . . . . . Repair Stations . | . . . . . . . . . . . . . . . . . . . . . . . . . . . . . . . . . . Recycling Units . | . . . . . . . . . . . . . . . . . . . . . . . . . . . . . . . . . . Scanalyzers . | . . . . . . . . . . . . . . . . . . . . . . . . . . . . . . . . . . Garrison Access . | . . . . . . . . . . . . . . . . . . . . . . . . . . . . . . . . . . Data Cores Recovered . | . . . . . . . . . . . . . . . . . . . . . . . . . . . . . . . . . . Used . | . . . . . . . . . . . . . . . . . . . . . . . . . . . . . . . . . . Hacking Detections 37 | . 2 . . . 2 4 . . . . 5 . . . . 2 . 11 . . . . 3 . . . 2 3 2 . . . 1 Full Trace Events 4 | . . . . . . . . . . . . . . . . . . 1 . . . . 2 . . . 1 . . . . . . Feedback Events . | . . . . . . . . . . . . . . . . . . . . . . . . . . . . . . . . . . Feedback Blocked . | . . . . . . . . . . . . . . . . . . . . . . . . . . . . . . . . . . Robot Schematics Acquired 20 | . . . . . . . . . 6 . . . . . . . . 9 . . . . . . . . . . . . 5 . . Robots Built 10 | . . . . . . . . . . . . . . . . . . 2 . . . . . . . . . . . . . . 8 Matter 1086 | . . . . . . . . . . . . . . . . . . 318 . . . . . . . . . . . . . . 768 Time 288 | . . . . . . . . . . . . . . . . . . 84 . . . . . . . . . . . . . . 204 Total Robot Build Rating 76 | . . . . . . . . . . . . . . . . . . 12 . . . . . . . . . . . . . . 64 Part Schematics Acquired 65 | . . . . . . 1 . . 5 . 1 . . . . . . 21 . . 4 . . 12 . . 21 . . . . . . Parts Built 15 | . . . . . . 2 . . . . 1 . . . . 2 . 4 . . . . 2 . . . . . . . . . 4 Matter 2204 | . . . . . . 190 . . . . 318 . . . . 190 . 760 . . . . 190 . . . . . . . . . 556 Time 756 | . . . . . . 95 . . . . 84 . . . . 95 . 297 . . . . 47 . . . . . . . . . 138 Total Part Build Rating 92 | . . . . . . 10 . . . . 6 . . . . 10 . 20 . . . . 10 . . . . . . . . . 36 Parts Repaired 15 | . . . . . . 2 . . . . . . . . . 2 . 4 . . . . 1 . . . . 2 4 . . . . Time 553 | . . . . . . 100 . . . . . . . . . 32 . 140 . . . . 47 . . . . 128 106 . . . . Parts Recycled . | . . . . . . . . . . . . . . . . . . . . . . . . . . . . . . . . . . Recycled Matter . | . . . . . . . . . . . . . . . . . . . . . . . . . . . . . . . . . . Retrieved Matter . | . . . . . . . . . . . . . . . . . . . . . . . . . . . . . . . . . . Retrieved Components . | . . . . . . . . . . . . . . . . . . . . . . . . . . . . . . . . . . Parts Scanalyzed 3 | . . . . . . 1 . . . . 1 . . . . . . 1 . . . . . . . . . . . . . . . Part Schematics Acquired 3 | . . . . . . 1 . . . . 1 . . . . . . 1 . . . . . . . . . . . . . . . Parts Damaged . | . . . . . . . . . . . . . . . . . . . . . . . . . . . . . . . . . . Bothacking | -11 -10 -10 -10 -9 -8 -7 -7 -7 -7 -6 -6 -6 -6 -6 -5 -5 -5 -5 -5 -5 -5 -4 -4 -4 -4 -4 -4 -3 -3 -2 -2 -2 -1 ------------ Run | Scr Mat Min Exi Min Mat Fac Low Low Dat Pro Fac Low Low Zio Pro Fac Was Fac Upp Upp Zhi Pro Fac Ext Cet Arc Hub Res Qua Res Tes Sec Acc Used RIF Installer . | . . . . . . . . . . . . . . . . . . . . . . . . . . . . . . . . . . Robots Hacked 2 | . . . . . . . . . . . . . . 2 . . . . . . . . . . . . . . . . . . . Non-combat 1 | . . . . . . . . . . . . . . 1 . . . . . . . . . . . . . . . . . . . Combat 1 | . . . . . . . . . . . . . . 1 . . . . . . . . . . . . . . . . . . . Robot Hacks Applied 3 | . . . . . . . . . . . . . . 3 . . . . . . . . . . . . . . . . . . . parse_system 3 | . . . . . . . . . . . . . . 3 . . . . . . . . . . . . . . . . . . . Relay Couplers Released 8 | . . . . . . . . . . . . . . . . . . 3 . . . . . . . . 4 1 . . . . . Machine Destruction 1 | . . . . . . . . . . . . . . . . . . . . . . . . . . . . 1 . . . . . Programmers 7 | . . . . . . . . . . . . . . . . . . 3 . . . . . . . . 4 . . . . . . Robots Rewired 7 | . . . . . . . . . . . . . . . . 1 . . . . . . . 6 . . . . . . . . . Allies Hacked 5 | . . . . . . . . . . . . . . . 2 . . 2 . . . . . . . . . 1 . . . . . Hacks Repelled . | . . . . . . . . . . . . . . . . . . . . . . . . . . . . . . . . . . Allies | -11 -10 -10 -10 -9 -8 -7 -7 -7 -7 -6 -6 -6 -6 -6 -5 -5 -5 -5 -5 -5 -5 -4 -4 -4 -4 -4 -4 -3 -3 -2 -2 -2 -1 -------- Run | Scr Mat Min Exi Min Mat Fac Low Low Dat Pro Fac Low Low Zio Pro Fac Was Fac Upp Upp Zhi Pro Fac Ext Cet Arc Hub Res Qua Res Tes Sec Acc Total Allies 147 | . . 2 . . . . . . . 1 . . . 4 . 2 20 4 . . . . 1 15 9 . . 2 6 . . 7 74 Largest Group 20 | . . 2 1 . . . . . . 1 . . . 4 4 1 20 6 . . . . 1 13 18 10 9 1 6 . . 7 15 Highest-Rated Group 1421 | . . 46 31 . . . . . . 94 . . . 152 152 30 802 150 . . . . 29 944 1421 972 810 29 86 . . 97 556 Highest-Rated Ally 156 | . . 31 31 . . . . . . 94 . . . 40 40 30 50 54 . . . . 29 156 156 156 103 29 15 . . 15 122 Zionite Dispatches 14 | . . . . . . . . . . . . . . . . 1 . . . . . . 1 2 3 . . 2 . . . . 5 Heavy 2 | . . . . . . . . . . . . . . . . . . . . . . . . . 1 . . . . . . . 1 Light 2 | . . . . . . . . . . . . . . . . . . . . . . . . 2 . . . . . . . . . Demo 1 | . . . . . . . . . . . . . . . . . . . . . . . . . . . . . . . . . 1 Melee Resupply 3 | . . . . . . . . . . . . . . . . . . . . . . . 1 . . . . 2 . . . . . Defense Resupply 1 | . . . . . . . . . . . . . . . . . . . . . . . . . . . . . . . . . 1 Infowar Resupply 1 | . . . . . . . . . . . . . . . . . . . . . . . . . . . . . . . . . 1 Hacking Resupply 1 | . . . . . . . . . . . . . . . . . . . . . . . . . 1 . . . . . . . . Hover Resupply 2 | . . . . . . . . . . . . . . . . 1 . . . . . . . . 1 . . . . . . . . Zionite Resupply 1 | . . . . . . . . . . . . . . . . . . . . . . . . . . . . . . . . . 1 Total Orders 21 | . . . . . . . . . . . . . . . . 2 . 4 . . . . 3 . 3 . 1 3 . . . . 5 STAY 3 | . . . . . . . . . . . . . . . . . . . . . . . 1 . 1 . 1 . . . . . . GOTO 2 | . . . . . . . . . . . . . . . . 1 . . . . . . . . . . . 1 . . . . . FOLLOW 1 | . . . . . . . . . . . . . . . . . . . . . . . . . 1 . . . . . . . . DROP 8 | . . . . . . . . . . . . . . . . 1 . . . . . . 1 . 1 . . 2 . . . . 3 EXPLORE 7 | . . . . . . . . . . . . . . . . . . 4 . . . . 1 . . . . . . . . . 2 Ally Attacks 858 | . . 15 . . . . . . . 6 . . . . 41 4 5 123 . . . . . 51 62 21 77 . 23 . . 58 372 Total Damage 23490 | . . 188 . . . . . . . 137 . . . . 1138 112 216 2802 . . . . . 1784 2591 1245 2747 . 546 . . 1200 8784 Kills 133 | . . 3 . . . . . . . 2 . . . . 7 1 1 20 . . . . . 9 11 3 22 . 2 . . 5 47 Allies Corrupted 6 | . . . . . . . . . . . . . . . . . . . . . . . 1 . 1 . . 1 1 . . . 2 Allies Melted . | . . . . . . . . . . . . . . . . . . . . . . . . . . . . . . . . . . Intel | -11 -10 -10 -10 -9 -8 -7 -7 -7 -7 -6 -6 -6 -6 -6 -5 -5 -5 -5 -5 -5 -5 -4 -4 -4 -4 -4 -4 -3 -3 -2 -2 -2 -1 ------- Run | Scr Mat Min Exi Min Mat Fac Low Low Dat Pro Fac Low Low Zio Pro Fac Was Fac Upp Upp Zhi Pro Fac Ext Cet Arc Hub Res Qua Res Tes Sec Acc Robot Analysis Total 4 | . . . . . . . . . . . . . . . . . . . . . 4 . . . . . . . . . . . . Derelict Logs Recovered 6 | . . 1 . . . . 1 . . 1 . 1 . 1 . . . . . . . 1 . . . . . . . . . . . Drone Launches 12 | . . . . . . . . . . . . . . . . . . 6 . . . . 2 . . . . . . . . . 4 Drone Recoveries . | . . . . . . . . . . . . . . . . . . . . . . . . . . . . . . . . . . Decoded 0b10 Intel 38 | . . . . . . . . . . . . . . . . . . . . . . . . . . . . . . . . . 38 Traps 14 | . . . . . . . . . . . . . . . . . . . . . . . . . . . . . . . . . 14 Emergency Access 3 | . . . . . . . . . . . . . . . . . . . . . . . . . . . . . . . . . 3 Items 17 | . . . . . . . . . . . . . . . . . . . . . . . . . . . . . . . . . 17 Machines 4 | . . . . . . . . . . . . . . . . . . . . . . . . . . . . . . . . . 4 Zionite Intel Received 36 | . . . . . . . . . . . . . . . . . . 9 . . . . 2 7 . . 9 1 2 . 1 2 3 Main Access 1 | . . . . . . . . . . . . . . . . . . . . . . . . . . . . . . . . 1 . Branch Access 2 | . . . . . . . . . . . . . . . . . . . . . . . . 1 . . . 1 . . . . . Emergency Access 4 | . . . . . . . . . . . . . . . . . . . . . . . 1 1 . . 1 . . . . . 1 Guard Positions 2 | . . . . . . . . . . . . . . . . . . . . . . . . . . . 1 . 1 . . . . Component Stockpiles 2 | . . . . . . . . . . . . . . . . . . 1 . . . . . . . . 1 . . . . . . Prototype Stockpiles 4 | . . . . . . . . . . . . . . . . . . 1 . . . . . 1 . . 1 . . . . . 1 Prototype Schematics 5 | . . . . . . . . . . . . . . . . . . 2 . . . . . 1 . . 2 . . . . . . Unaware Schematics 3 | . . . . . . . . . . . . . . . . . . 2 . . . . . . . . . . . . 1 . . Unaware Analyses 1 | . . . . . . . . . . . . . . . . . . . . . . . . 1 . . . . . . . . . Trap Installations 2 | . . . . . . . . . . . . . . . . . . 1 . . . . . . . . . . . . . 1 . Active Terminals 3 | . . . . . . . . . . . . . . . . . . . . . . . . 1 . . 1 . 1 . . . . Active Garrisons 2 | . . . . . . . . . . . . . . . . . . . . . . . . . . . 1 . . . . . 1 Depthwide Sectors/0 3 | . . . . . . . . . . . . . . . . . . 1 . . . . . 1 . . 1 . . . . . . Depthwide Sectors/-1 2 | . . . . . . . . . . . . . . . . . . 1 . . . . 1 . . . . . . . . . . Exploration | -11 -10 -10 -10 -9 -8 -7 -7 -7 -7 -6 -6 -6 -6 -6 -5 -5 -5 -5 -5 -5 -5 -4 -4 -4 -4 -4 -4 -3 -3 -2 -2 -2 -1 ------------- Run | Scr Mat Min Exi Min Mat Fac Low Low Dat Pro Fac Low Low Zio Pro Fac Was Fac Upp Upp Zhi Pro Fac Ext Cet Arc Hub Res Qua Res Tes Sec Acc Turns Passed 28670 | . 649 2091 496 162 797 3283 538 997 187 843 944 159 114 508 218 1034 201 2490 139 117 223 463 1051 662 282 1353 1269 1660 1769 521 738 795 1917 Spaces Moved 18839 | 1 341 718 273 91 325 1132 244 427 90 465 696 237 176 676 233 967 226 2280 184 173 247 469 823 608 264 43 1037 1194 742 336 658 322 2141 Core 271 | . . . . . . . . . . . . . . . . . . . . . . . . . . . . . . . 72 39 160 Treads 3108 | . 55 718 273 91 325 984 . . . 3 . . . . . . . . . . . . . . . . 29 58 315 . . 257 . Legs 2015 | 1 286 . . . . 48 244 427 90 102 . . . . . . . . . . . . . . . . . . 423 272 . 26 96 Wheels 536 | . . . . . . 100 . . . 360 76 . . . . . . . . . . . . . . . . . . . . . . Hover 12671 | . . . . . . . . . . . 620 237 176 676 233 967 226 2280 184 173 247 469 823 608 264 43 1008 1136 4 64 586 . 1647 Flight 238 | . . . . . . . . . . . . . . . . . . . . . . . . . . . . . . . . . 238 Fastest Speed 34 | 120 120 180 180 180 160 130 210 210 210 140 63 63 63 63 63 63 68 68 68 68 68 68 68 68 63 63 58 52 58 56 50 50 34 Average Speed 96 | 120 145 180 180 180 206 219 210 210 210 156 71 63 63 63 63 64 68 69 68 68 68 68 69 70 66 63 64 68 135 96 55 129 51 Slowest Speed 300 | 120 180 180 180 180 230 290 210 210 210 300 142 63 63 63 63 142 68 138 68 68 68 68 138 138 68 63 180 200 180 135 110 147 260 Overloaded Moves . | . . . . . . . . . . . . . . . . . . . . . . . . . . . . . . . . . . Propulsion Burnouts . | . . . . . . . . . . . . . . . . . . . . . . . . . . . . . . . . . . Robots Hopped 2 | . . . . . . . . . . . . . . . . . . . . . . . . . . . . . . . . . 2 Cave-ins Triggered 1 | . . . . . . . . . . . . . . . . . . . . . . . . 1 . . . . . . . . . Teleports 3 | . . . . . . . . . . . . . . . . . . . . . . . . . . . . 1 . 1 1 . . Exploration Rate (%) 50 | 2 58 88 61 18 32 31 49 62 75 63 29 49 29 90 37 22 88 71 47 40 60 58 16 62 78 59 79 35 86 16 58 15 65 Regions Visited 33 Branch Regions 22 Pre-discovered Areas 44 | . . 1 . . . . . . 1 . . 1 . 1 . . . 14 . . 3 1 4 9 . . 9 . . . . . . Known Exits Taken 19 | . 1 . 1 . . 1 . . . . 1 . . . . . . 1 1 1 1 1 1 1 1 1 1 1 1 1 1 1 . Unknown Exits Taken 12 | 1 . 1 . 1 1 . 1 1 1 1 . 1 1 1 1 . . . . . . . . . . . . . . . . . . Scrap Searched 11 | . . 2 . . . . . . . 1 . 1 . 4 1 . . . . 1 . 1 . . . . . . . . . . . Spaces Dug 423 | . . . . . . 17 . . . . 28 1 1 . . 9 . 52 1 . . 6 28 14 1 . 174 29 15 5 10 2 30 Terrain Destroyed 1440 | . . 4 . . 43 92 7 67 . 3 45 1 1 . . 98 . 111 1 . . 181 45 14 1 4 362 167 53 13 10 38 79 Melee 233 | . . . . . . 11 . . . . 28 1 1 . . 9 . 52 1 . . 6 28 14 1 . 20 29 15 5 10 2 . Projectile 118 | . . . . . . 4 2 8 . 3 . . . . . . . 3 . . . . . . . 4 14 . 6 . . 22 52 AOE 1089 | . . 4 . . 43 77 5 59 . . 17 . . . . 89 . 56 . . . 175 17 . . . 328 138 32 8 . 14 27 Actions | -11 -10 -10 -10 -9 -8 -7 -7 -7 -7 -6 -6 -6 -6 -6 -5 -5 -5 -5 -5 -5 -5 -4 -4 -4 -4 -4 -4 -3 -3 -2 -2 -2 -1 --------- Run | Scr Mat Min Exi Min Mat Fac Low Low Dat Pro Fac Low Low Zio Pro Fac Was Fac Upp Upp Zhi Pro Fac Ext Cet Arc Hub Res Qua Res Tes Sec Acc Total 27357 | . 413 1489 278 90 408 1697 258 509 89 541 1030 244 177 756 285 1314 251 3031 196 172 296 591 1210 796 355 1362 1493 1858 1361 516 1007 537 2747 Wait 5737 | . 5 754 . . 19 335 . 37 . 21 194 . 1 74 41 250 . 548 7 . . 82 267 93 37 1313 280 353 291 92 248 46 349 Move 18801 | . 340 717 272 90 324 1131 243 426 89 464 695 236 175 675 232 967 225 2279 183 172 246 468 822 606 263 42 1036 1193 741 335 657 321 2136 Hop 2 | . . . . . . . . . . . . . . . . . . . . . . . . . . . . . . . . . 2 Pick Up 243 | . 4 4 5 . 21 21 2 3 . 7 12 2 . 1 . 9 5 16 1 . 22 2 6 4 14 . 7 27 31 5 2 . 10 Fast Attach 223 | . 3 . . . 5 12 . 1 . 4 9 . . . . 6 1 3 . . 3 3 6 3 3 . 8 21 32 11 6 37 46 Attach 178 | . 4 . . . 6 15 2 10 . 6 4 . . . . 3 1 12 3 . 5 4 12 9 3 . 8 29 23 7 5 3 4 Detach 150 | . . . . . . 3 . 9 . 9 4 . . . . 3 2 12 . . 2 6 10 9 4 . 11 26 19 8 3 3 7 Swap 279 | . 2 . . . 3 16 2 2 . 2 15 2 . 2 . 13 3 44 . . 1 . 10 2 10 3 21 49 41 12 4 . 20 Drop 268 | . 3 . 1 . 3 10 1 3 . 7 22 2 . 1 . 13 3 16 1 . 10 5 10 8 7 . 10 27 32 17 24 12 20 Fire 716 | . 52 14 . . 27 30 8 9 . 21 13 . . 3 . 6 11 25 . . . 15 7 . 10 4 54 60 95 3 . 99 150 Melee 692 | . . . . . . 124 . 9 . . 49 2 1 . 12 41 . 73 1 . 6 6 59 34 4 . 57 72 56 26 45 15 . Ram 3 | . . . . . . . . . . . . . . . . . . . . . . . . . . . . 1 . . . . 2 Kick 1 | . . . . . . . . . . . . . . . . . . . . . . . . . . . . . . . . 1 . Crush 1 | . . . . . . . . . . . . . . . . . . . . . . . . . . . 1 . . . . . . Escape Stasis 27 | . . . . . . . . . . . 13 . . . . . . . . . . . . 1 . . . . . . 13 . . Rewire 31 | . . . . . . . . . . . . . . . . 3 . . . . 1 . . 27 . . . . . . . . . Trap . | . . . . . . . . . . . . . . . . . . . . . . . . . . . . . . . . . . Miscellaneous 5 | . . . . . . . . . . . . . . . . . . 3 . . . . 1 . . . . . . . . . 1 Route ------- -11/Scrapyard -10/Materials (discovered 3 exits: [*Mat x2] / *Min) -10/Mines (discovered 3 exits: [*Mat x2] / *Exi) -10/Exiles (discovered 2 exits: *Min x2) -9/Mines -8/Materials -7/Factory (discovered 2 exits: *Low x2) -7/Lower Caves -7/Lower Caves (discovered 2 exits: *Fac / *Dat) -7/Data Miner -6/Proximity Caves -6/Factory (discovered 4 exits: *Fac x2 / *Low x2) -6/Lower Caves -6/Lower Caves -6/Zion -5/Proximity Caves -5/Factory (discovered 2 exits: *Fac / *Upp) -5/Waste -5/Factory (discovered 4 exits: *Fac x3 / *Upp) -5/Upper Caves -5/Upper Caves -5/Zhirov -4/Proximity Caves -4/Factory (discovered 2 exits: *Res / *Ext) -4/Extension (discovered 2 exits: *Res / *Cet) -4/Cetus (discovered 2 exits: *Res / *Arc) -4/Archives -4/Hub_04(d) (discovered 3 exits: *Res x3) -3/Research (discovered 4 exits: *Res / *Arm / *Qua x2) -3/Quarantine -2/Research (discovered 2 exits: *Acc / *Tes) -2/Testing -2/Section 7 -1/Access (discovered 2 exits: *Sur / [*Com]) Tau Ceti IV Orbit History --------- Turn | Location | Event 1 | -11/Scrapyard | Discovered new exit (range 0) 1 | -11/Scrapyard | Entered Materials 37 | -10/Materials | Identified exit to Mines 76 | -10/Materials | Discovered new exit (range 16) 304 | -10/Materials | Build established: Mutant 427 | -10/Materials | Discovered new exit (range 15) 534 | -10/Materials | Lost 3 parts (1p1n1w) 650 | -10/Materials | Entered Mines 774 | -10/Mines | Core integrity fell below 50% 794 | -10/Mines | Discovered new exit (range 11) 811 | -10/Mines | Assembled infested the area 816 | -10/Mines | Assisted by a Guerilla fighting off Assembled 1897 | -10/Mines | Discovered new exit (range 10) 1984 | -10/Mines | Discovered new exit (range 10) 2006 | -10/Mines | Learned location of Storage (-9) 2245 | -10/Mines | Received a Rocket Launcher from a helpful Derelict 2710 | -10/Mines | Deemed a non-threat by the Exiles lab entrance 2741 | -10/Mines | Entered Exiles 2741 | -10/Exiles | Accompanied by 1 ally 2742 | -10/Exiles | Identified exit to Mines 2771 | -10/Exiles | Led the pair of lost Derelicts to a safe place 2795 | -10/Exiles | Met 8R-AWN 2817 | -10/Exiles | Met EX-HEX 2869 | -10/Exiles | Met EX-BIN 2893 | -10/Exiles | Aligned with FarCom system 2894 | -10/Exiles | Given EX-Vault access code 2936 | -10/Exiles | Opened EX-Vault 2948 | -10/Exiles | Found Lightpack 2.0 2953 | -10/Exiles | Found AWS/Autocannon 2965 | -10/Exiles | Found AWS/Thermal 3004 | -10/Exiles | Warned to stay clear of 0b10 Research branches 3065 | -10/Exiles | Met EX-DEC 3237 | -10/Exiles | Stole three prototypes: Lightpack 2.0, AWS/Thermal, AWS/Autocannon 3237 | -10/Exiles | Entered Mines 3389 | -9/Mines | Discovered new exit (range 7) 3399 | -9/Mines | Entered Materials 3399 | -8/Materials | Evolved 4 slots: Utility x4 3524 | -8/Materials | Lost 4 parts (1p1n2w) 3760 | -8/Materials | Build established: Hauler-Mutant 4121 | -8/Materials | Discovered new exit (range 15) 4196 | -8/Materials | Entered Factory 4196 | -7/Factory | Evolved 2 slots: Utility x2 4198 | -7/Factory | FarCom data flow suspended 4485 | -7/Factory | Repaired Cmb. Airjet 4536 | -7/Factory | Repaired Cmb. Airjet 5548 | -7/Factory | Garrison activated, responded to threat 5788 | -7/Factory | System corruption reached 10% 5971 | -7/Factory | Fabricated Cmb. Airjet? 6005 | -7/Factory | Local fabrication network quarantined 6596 | -7/Factory | First assault squad dispatched 6629 | -7/Factory | Garrison activated, responded to threat 6738 | -7/Factory | Core integrity fell below 50% 6795 | -7/Factory | Lost 9 parts (1p2n5u1w) 7211 | -7/Factory | Identified exit to Lower Caves 7479 | -7/Factory | Entered Lower Caves 7622 | -7/Lower Caves | Learned 8 Factory zone layouts 8007 | -7/Lower Caves | Discovered new exit (range 6) 8017 | -7/Lower Caves | Entered another Lower Caves area 8139 | -7/Lower Caves | Discovered new exit (range 8) 8196 | -7/Lower Caves | Attracted the attention of an 0b10 outpost 8385 | -7/Lower Caves | Spotted B-75 Beast 8736 | -7/Lower Caves | Spotted 9T-4DA(f) 8737 | -7/Lower Caves | Encountered a Master Thief 8741 | -7/Lower Caves | Core integrity fell below 20% 8753 | -7/Lower Caves | Destroyed 9T-4DA(f) 8819 | -7/Lower Caves | Spotted KU-FGM(f) 8820 | -7/Lower Caves | Encountered a Master Thief 8820 | -7/Lower Caves | AWS/Autocannon stolen by Master Thief 8897 | -7/Lower Caves | Spotted KN-F1T(f) 8898 | -7/Lower Caves | Encountered a Master Thief 8902 | -7/Lower Caves | Cmb. Airjet stolen by Master Thief 8995 | -7/Lower Caves | Discovered new exit (range 10) 9014 | -7/Lower Caves | Entered Data Miner 9014 | -7/Data Miner | Discovered new exit (range 6) 9044 | -7/Data Miner | Met Data Miner 9109 | -7/Data Miner | Learned location of Section 7 (-2) 9109 | -7/Data Miner | Acquired the access code to Warlord's prototype stash 9138 | -7/Data Miner | Received God Mode back door access code from Data Miner 9201 | -7/Data Miner | Entered Proximity Caves 9342 | -6/Proximity Caves | Escorted by Enhanced Grunt 9342 | -6/Proximity Caves | Attracted the attention of an 0b10 checkpoint 9389 | -6/Proximity Caves | Spotted 2Y-9MW(f) 9390 | -6/Proximity Caves | Encountered a Master Thief 9395 | -6/Proximity Caves | Spotted 3N-4O9(f) 9396 | -6/Proximity Caves | Encountered a Master Thief 9397 | -6/Proximity Caves | Prototype Storage stolen by Master Thief 9400 | -6/Proximity Caves | Destroyed 2Y-9MW(f) 9407 | -6/Proximity Caves | Spotted J4-5G8(f) 9408 | -6/Proximity Caves | Encountered a Master Thief 9409 | -6/Proximity Caves | Spotted O7-2F6(f) 9410 | -6/Proximity Caves | Encountered a Master Thief 9413 | -6/Proximity Caves | Adv. Heat Sink stolen by Master Thief 9413 | -6/Proximity Caves | Imp. Medium Armor Plating stolen by Master Thief 9804 | -6/Proximity Caves | Spotted F9-20B(f) 9805 | -6/Proximity Caves | Encountered a Master Thief 9806 | -6/Proximity Caves | Nanoactuators stolen by Master Thief 9978 | -6/Proximity Caves | Spotted B-75 Beast 10016 | -6/Proximity Caves | Discovered new exit (range 18) 10017 | -6/Proximity Caves | Learned 4 Factory zone layouts 10044 | -6/Proximity Caves | Entered Factory 10044 | -6/Factory | Evolved 2 slots: Propulsion x2 10045 | -6/Factory | Identified exit to Lower Caves 10148 | -6/Factory | Discovered new exit (range 4) 10253 | -6/Factory | Spotted B-75 Beast 10549 | -6/Factory | Discovered new exit (range 8) 10610 | -6/Factory | Discovered exit to Lower Caves (range 18) 10769 | -6/Factory | Found Scatter Rocket Array 10890 | -6/Factory | Fabricated Mni. Smartbomb Launcher (x1) 10988 | -6/Factory | Entered Lower Caves 11077 | -6/Lower Caves | Encountered a Warlord checkpoint 11128 | -6/Lower Caves | Learned location of Zion (-6) 11144 | -6/Lower Caves | Discovered new exit (range 6) 11147 | -6/Lower Caves | Entered another Lower Caves area 11186 | -6/Lower Caves | Encountered a Warlord checkpoint 11248 | -6/Lower Caves | Discovered new exit (range 10) 11261 | -6/Lower Caves | Entered Zion 11306 | -6/Zion | Discovered new exit (range 13) 11324 | -6/Zion | System corruption cleaned by Quarantine Array 11388 | -6/Zion | Received a hallucinogenic algorithm 11498 | -6/Zion | Imprinted 11500 | -6/Zion | Declared Zion's savior 11572 | -6/Zion | Learned location of Warlord (-4) 11769 | -6/Zion | Entered Proximity Caves 11769 | -5/Proximity Caves | Accompanied by 4 allies 11794 | -5/Proximity Caves | Build established: Messiah-Mutant 11869 | -5/Proximity Caves | P-70 Sage assimilated allied W5-GDB(M) 11976 | -5/Proximity Caves | Discovered new exit (range 3) 11987 | -5/Proximity Caves | Spotted D5-2PO(f) 11987 | -5/Proximity Caves | Entered Factory 11987 | -5/Factory | Evolved 2 slots: Utility x2 12065 | -5/Factory | Discovered new exit (range 4) 12138 | -5/Factory | Repaired Lrg. Storage Unit 12159 | -5/Factory | Repaired Imp. Propulsion Shielding 12334 | -5/Factory | Identified exit to Upper Caves 12466 | -5/Factory | Discovered new exit (range 12) 12473 | -5/Factory | Zion Hover Resupply teleported in 12776 | -5/Factory | Fabricated Cmb. Airjet (x2) 13021 | -5/Factory | Manually triggered Chute Trap 13021 | -5/Factory | Sucked down chute 13021 | -5/Factory | Entered Waste 13022 | -5/Waste | Joined by Warlord forces that had cleared the area 13030 | -5/Waste | A Compactor rumbled back to life 13030 | -5/Waste | Spotted C-40 Crusher 13030 | -5/Waste | Allies destroyed C-40 Crusher 13035 | -5/Waste | Found Unknown Protection 13036 | -5/Waste | Identified Adv. Powered Armor 13149 | -5/Waste | Discovered new exit (range 14) 13154 | -5/Waste | Found Adv. Powered Armor 13193 | -5/Waste | Found Damper Plating 13221 | -5/Waste | Identified exit to Factory 13222 | -5/Waste | Entered Factory 13222 | -5/Factory | Accompanied by 6 allies 13263 | -5/Factory | Repaired Adv. Powered Armor 13397 | -5/Factory | Repaired Imp. Propulsion Shielding 13466 | -5/Factory | Discovered new exit (range 5) 13468 | -5/Factory | Identified exit to Factory 13487 | -5/Factory | Build established: Messiah-Scout 13568 | -5/Factory | Retrieved Zion intel report: Depthwide Sectors/0 13595 | -5/Factory | Retrieved Zion intel report: Prototype Stockpiles 13609 | -5/Factory | Retrieved Zion intel report: Component Stockpiles 13695 | -5/Factory | Incoming investigation squad redirected 13716 | -5/Factory | Repaired Adv. Weapon Cycler 13744 | -5/Factory | Retrieved Zion intel report: Depthwide Sectors/-1 13831 | -5/Factory | Incoming investigation squad redirected 13924 | -5/Factory | Spotted B-75 Beast 13957 | -5/Factory | Fabricated P-70 Sage? 13966 | -5/Factory | Discovered exit to Factory (range 10) 13967 | -5/Factory | Build established: Messiah-Mutant 13998 | -5/Factory | Sage 6b assimilated hostile G-50 Soldier 14001 | -5/Factory | Sage 6a assimilated hostile G-50 Soldier 14037 | -5/Factory | Incoming assault squad redirected 14062 | -5/Factory | Retrieved Zion intel report: Trap Installations 14089 | -5/Factory | Retrieved Zion intel report: Unaware Schematics 14133 | -5/Factory | Retrieved Zion intel report: Prototype Schematics 14265 | -5/Factory | Retrieved Zion intel report: Unaware Schematics 14311 | -5/Factory | Retrieved Zion intel report: Prototype Schematics 14383 | -5/Factory | Fabricated Exp. Utility Shielding? 14505 | -5/Factory | Fabricated Exp. Utility Shielding (x1) 14575 | -5/Factory | Incoming investigation squad redirected 14598 | -5/Factory | Terminal network hard line cut 14650 | -5/Factory | Fabricated Cmb. Airjet (x2) 14722 | -5/Factory | First assault squad dispatched 14815 | -5/Factory | Garrison activated, responded to threat 14887 | -5/Factory | Destroyed 9 combat bots 15143 | -5/Factory | Discovered exit to Factory (range 25) 15158 | -5/Factory | Incoming assault squad redirected 15220 | -5/Factory | Build established: Messiah-Scout 15283 | -5/Factory | Incoming assault squad redirected 15483 | -5/Factory | Discovered exit to Upper Caves (range 13) 15505 | -5/Factory | Incoming assault squad redirected 15514 | -5/Factory | Local fabrication network quarantined 15615 | -5/Factory | Repaired Imp. Propulsion Shielding 15637 | -5/Factory | Incoming assault squad redirected 15712 | -5/Factory | Entered Upper Caves 15845 | -5/Upper Caves | Discovered new exit (range 8) 15850 | -5/Upper Caves | Identified exit to Upper Caves 15851 | -5/Upper Caves | Entered another Upper Caves area 15960 | -5/Upper Caves | Discovered new exit (range 13) 15968 | -5/Upper Caves | Identified exit to Zhirov 15968 | -5/Upper Caves | Entered Zhirov 15970 | -5/Zhirov | Discovered new exit (range 3) 15982 | -5/Zhirov | Met Zhirov 15999 | -5/Zhirov | Learned location of Quarantine (-3) 15999 | -5/Zhirov | Learned location of Testing (-2) 15999 | -5/Zhirov | Learned location of Command (-1) 16003 | -5/Zhirov | Zhirov requested help retrieving the SGEMP Prototype 16015 | -5/Zhirov | Found Alien Artifact 16015 | -5/Zhirov | Identified Integrated Reactor 16015 | -5/Zhirov | Installed Integrated Reactor, increased core energy generation (+2%) 16024 | -5/Zhirov | Found Alien Artifact 16190 | -5/Zhirov | Identified exit to Proximity Caves 16191 | -5/Zhirov | Entered Proximity Caves 16630 | -4/Proximity Caves | Discovered exit to Factory (range 18) 16654 | -4/Proximity Caves | Entered Factory 16654 | -4/Factory | Evolved 2 slots: Utility x2 16762 | -4/Factory | Discovered new exit (range 16) 16817 | -4/Factory | Identified exit to Research 16838 | -4/Factory | Retrieved Zion intel report: Depthwide Sectors/-1 17029 | -4/Factory | Discovered new exit (range 15) 17083 | -4/Factory | Incoming investigation squad redirected 17091 | -4/Factory | Fabricated Cmb. Airjet? 17100 | -4/Factory | Garrison activated, responded to threat 17105 | -4/Factory | Repaired Broken Adv. Powered Armor? 17588 | -4/Factory | Retrieved Zion intel report: Emergency Access 17589 | -4/Factory | Zion Melee Resupply teleported in 17593 | -4/Factory | Found Vibroblade 17704 | -4/Factory | Identified exit to Extension 17705 | -4/Factory | Entered Extension 17877 | -4/Extension | Rescued a captive Derelict 17883 | -4/Extension | Rescued a captive Derelict 17889 | -4/Extension | Retrieved Zion intel report: Active Terminals 17898 | -4/Extension | Energy Cycler disabled 17898 | -4/Extension | Rescued a captive Derelict 17898 | -4/Extension | Rescued a captive Derelict 17900 | -4/Extension | Retrieved Zion intel report: Emergency Access 17901 | -4/Extension | Zion Light squad teleported in 17901 | -4/Extension | Rescued a captive Derelict 17911 | -4/Extension | Rescued A7 17967 | -4/Extension | Crushed by falling debris 18037 | -4/Extension | Retrieved Zion intel report: Prototype Stockpiles 18050 | -4/Extension | Retrieved Zion intel report: Depthwide Sectors/0 18088 | -4/Extension | Retrieved Zion intel report: Branch Access 18088 | -4/Extension | Identified exit to Cetus 18092 | -4/Extension | Retrieved Zion intel report: Unaware Analyses 18191 | -4/Extension | Retrieved Zion intel report: Prototype Schematics 18192 | -4/Extension | Zion Light squad teleported in 18280 | -4/Extension | Discovered exit to Research (range 10) 18367 | -4/Extension | Entered Cetus 18367 | -4/Cetus | Accompanied by 13 allies 18372 | -4/Cetus | Acquired a Cetus Manufacturing Module code from A7 18380 | -4/Cetus | Spotted Cetus Guard 18380 | -4/Cetus | Spotted Cetus Guard 18383 | -4/Cetus | Spotted Cetus Guard 18386 | -4/Cetus | Destroyed Cetus Guard 18387 | -4/Cetus | Allies destroyed Cetus Guard 18387 | -4/Cetus | Spotted Cetus Guard 18394 | -4/Cetus | Allies destroyed Cetus Guard 18396 | -4/Cetus | Allies destroyed Cetus Guard 18433 | -4/Cetus | Started Cetus Manufacturing Module 18437 | -4/Cetus | Zion Heavy squad teleported in 18455 | -4/Cetus | Escorted A7 to Cetus Mainframe 18458 | -4/Cetus | Manufactured an Enhanced Grunt 18471 | -4/Cetus | Zion Hacking Resupply teleported in 18474 | -4/Cetus | Zion Hover Resupply teleported in 18483 | -4/Cetus | Manufactured an Enhanced Grunt 18508 | -4/Cetus | Manufactured an Enhanced Grunt 18513 | -4/Cetus | Discovered new exit (range 15) 18533 | -4/Cetus | Manufactured an Enhanced Grunt 18544 | -4/Cetus | Spotted Cetus Guard 18544 | -4/Cetus | Spotted Cetus Guard 18548 | -4/Cetus | Spotted Cetus Guard 18549 | -4/Cetus | Spotted Cetus Guard 18554 | -4/Cetus | Allies destroyed Cetus Guard 18556 | -4/Cetus | Destroyed Cetus Guard 18556 | -4/Cetus | Allies destroyed Cetus Guard 18557 | -4/Cetus | Discovered exit to Research (range 16) 18557 | -4/Cetus | Allies destroyed Cetus Guard 18558 | -4/Cetus | Manufactured an Enhanced Grunt 18561 | -4/Cetus | Scared off Revision 17 18578 | -4/Cetus | Found Prototype Protection 18578 | -4/Cetus | Identified Zio. Weapon Casing 18599 | -4/Cetus | Found Zio. Weapon Casing 18614 | -4/Cetus | Found Zio. Weapon Casing 18631 | -4/Cetus | Identified exit to Archives 18649 | -4/Cetus | Entered Archives 18649 | -4/Archives | Accompanied by 10 allies 18653 | -4/Archives | Build established: Messiah-Mutant 18654 | -4/Archives | Received a hacking code to weaken MAIN.C 18677 | -4/Archives | Discovered new exit (range 15) 18686 | -4/Archives | Identified exit to Hub_04(d) 20002 | -4/Archives | Entered Hub_04(d) 20002 | -4/Hub_04(d) | Accompanied by 9 allies 20042 | -4/Hub_04(d) | Discovered exit to Research (range 13) 20043 | -4/Hub_04(d) | Found Zio. Weapon Casing 20090 | -4/Hub_04(d) | Retrieved Zion intel report: Active Terminals 20123 | -4/Hub_04(d) | Retrieved Zion intel report: Emergency Access 20214 | -4/Hub_04(d) | Retrieved Zion intel report: Guard Positions 20251 | -4/Hub_04(d) | Discovered exit to Research (range 14) 20255 | -4/Hub_04(d) | Retrieved Zion intel report: Active Garrisons 20299 | -4/Hub_04(d) | Build established: Messiah-Scout 20371 | -4/Hub_04(d) | Incoming investigation squad redirected 20389 | -4/Hub_04(d) | Retrieved Zion intel report: Depthwide Sectors/0 20435 | -4/Hub_04(d) | Retrieved Zion intel report: Prototype Stockpiles 20455 | -4/Hub_04(d) | Retrieved Zion intel report: Prototype Schematics 20541 | -4/Hub_04(d) | Retrieved Zion intel report: Component Stockpiles 20547 | -4/Hub_04(d) | Retrieved Zion intel report: Prototype Schematics 20634 | -4/Hub_04(d) | Discovered exit to Research (range 17) 20670 | -4/Hub_04(d) | Garrison activated, responded to threat 20738 | -4/Hub_04(d) | Incoming investigation squad redirected 21000 | -4/Hub_04(d) | Garrison activated, responded to threat 21092 | -4/Hub_04(d) | Network Hub disabled 21100 | -4/Hub_04(d) | Network Hub disabled 21127 | -4/Hub_04(d) | Spotted Lightning 21127 | -4/Hub_04(d) | Spotted Lightning 21127 | -4/Hub_04(d) | Spotted Lightning 21129 | -4/Hub_04(d) | Spotted Lightning 21131 | -4/Hub_04(d) | Spotted Lightning 21137 | -4/Hub_04(d) | Spotted Lightning 21148 | -4/Hub_04(d) | Destroyed Lightning 21152 | -4/Hub_04(d) | Found Prototype Device 21196 | -4/Hub_04(d) | Destroyed Lightning 21202 | -4/Hub_04(d) | Identified EM Dispersion Field 21234 | -4/Hub_04(d) | Destroyed Lightning 21271 | -4/Hub_04(d) | Entered Research 21271 | -3/Research | Evolved 2 slots: Utility x2 21296 | -3/Research | Build established: Messiah-Mutant 21331 | -3/Research | Repaired Exp. Utility Shielding 21355 | -3/Research | Repaired Adv. Powered Armor 21428 | -3/Research | Discovered new exit (range 11) 21435 | -3/Research | Identified exit to Armory 21496 | -3/Research | Identified Transdimensional Reconstructor 21744 | -3/Research | Garrison activated, responded to threat 21841 | -3/Research | Destroyed 7 combat bots 21948 | -3/Research | Retrieved Zion intel report: Branch Access 21948 | -3/Research | Identified exit to Quarantine 21949 | -3/Research | Zion Melee Resupply teleported in 22097 | -3/Research | Found Molecular Scythe 22100 | -3/Research | Found Molecular Scythe 22176 | -3/Research | Warped through subspace 22515 | -3/Research | Found Prototype Device 22521 | -3/Research | First assault squad dispatched 22544 | -3/Research | Zion Melee Resupply teleported in 22547 | -3/Research | Found Exp. Melee Analysis Suite 22549 | -3/Research | Discovered new exit (range 19) 22751 | -3/Research | High security lockdown imminent 22784 | -3/Research | Found Adv. Powered Armor 22831 | -3/Research | High security lockdown engaged 22931 | -3/Research | Entered Quarantine 23002 | -3/Quarantine | Lost 11 parts (1p6n4u) 23053 | -3/Quarantine | Identified Exp. Thermal Shield 23075 | -3/Quarantine | Retrieved Zion intel report: Active Terminals 23181 | -3/Quarantine | First assault squad dispatched 23208 | -3/Quarantine | Incoming assault squad redirected 23253 | -3/Quarantine | System corruption reached 10% 23261 | -3/Quarantine | Incoming assault squad redirected 23292 | -3/Quarantine | Lost 5 parts (1p1n3u) 23295 | -3/Quarantine | Destroyed 8 combat bots 23531 | -3/Quarantine | Cryocooling Duct disabled 23534 | -3/Quarantine | Cryocooling Duct disabled 23546 | -3/Quarantine | Ambient heat levels rising (+20) 23546 | -3/Quarantine | Non-combat units ordered to evacuate 23549 | -3/Quarantine | Ambient heat levels rising (+20) 23549 | -3/Quarantine | Combat units ordered to evacuate 23590 | -3/Quarantine | Found Alien Energy Cannon 23622 | -3/Quarantine | Found Transdimensional Reconstructor 23629 | -3/Quarantine | Found Alien Artifact 23633 | -3/Quarantine | Found Alien Artifact 23643 | -3/Quarantine | Found Transdimensional Reconstructor 23645 | -3/Quarantine | Found Transdimensional Reconstructor 23647 | -3/Quarantine | Found Transdimensional Reconstructor 23649 | -3/Quarantine | Quarantine Guard activated 23700 | -3/Quarantine | Repaired Exp. Utility Shielding 23712 | -3/Quarantine | Repaired Adv. Powered Armor 23713 | -3/Quarantine | Repaired Imp. Propulsion Shielding 23754 | -3/Quarantine | Repaired Adv. Powered Armor 23767 | -3/Quarantine | Spotted Quarantine Guard 23801 | -3/Quarantine | Destroyed Quarantine Guard 23868 | -3/Quarantine | Spotted Quarantine Guard 23950 | -3/Quarantine | Spotted Quarantine Guard 23989 | -3/Quarantine | Spotted Quarantine Guard 23989 | -3/Quarantine | Spotted Quarantine Guard 23991 | -3/Quarantine | Core integrity fell below 50% 23996 | -3/Quarantine | Destroyed Quarantine Guard 24011 | -3/Quarantine | Destroyed Quarantine Guard 24021 | -3/Quarantine | Spotted Quarantine Guard 24030 | -3/Quarantine | Destroyed Quarantine Guard 24036 | -3/Quarantine | Destroyed Quarantine Guard 24040 | -3/Quarantine | Spotted Quarantine Guard 24056 | -3/Quarantine | Destroyed Quarantine Guard 24068 | -3/Quarantine | Destroyed Quarantine Guard 24112 | -3/Quarantine | Spotted Quarantine Guard 24125 | -3/Quarantine | Destroyed Quarantine Guard 24150 | -3/Quarantine | Spotted Quarantine Guard 24161 | -3/Quarantine | Destroyed Quarantine Guard 24207 | -3/Quarantine | Retrieved Zion intel report: Guard Positions 24287 | -3/Quarantine | Found Alien Impact Weapon 24323 | -3/Quarantine | Found Alien Artifact 24323 | -3/Quarantine | Identified Core Reset Matrix 24323 | -3/Quarantine | Identified Dimensional Node Initializer (x2) 24323 | -3/Quarantine | Identified Core Cannon 24323 | -3/Quarantine | Identified Core Stripper 24323 | -3/Quarantine | Used Core Reset Matrix 24327 | -3/Quarantine | Detected hypermatrix surge 24327 | -3/Quarantine | Emitted hypermatrix ping 24327 | -3/Quarantine | Sensed 3 artifacts in vicinity 24332 | -3/Quarantine | Assembled emerged from beneath the floor 24368 | -3/Quarantine | Terminal network hard line cut 24429 | -3/Quarantine | Met incapacitated Sigix Warrior 24429 | -3/Quarantine | Lockdown squad dispatched 24486 | -3/Quarantine | Spotted Lightning 24486 | -3/Quarantine | Spotted Lightning 24498 | -3/Quarantine | Spotted Lightning 24506 | -3/Quarantine | Destroyed Lightning 24513 | -3/Quarantine | Destroyed Lightning 24534 | -3/Quarantine | Destroyed Lightning 24548 | -3/Quarantine | Found Prototype Processor 24548 | -3/Quarantine | Identified Exp. Targeting Computer 24564 | -3/Quarantine | Found Prototype Energy Cannon 24591 | -3/Quarantine | Found Prototype Device 24591 | -3/Quarantine | Identified Exp. Phase Shifter 24667 | -3/Quarantine | Discovered new exit (range 13) 24667 | -3/Quarantine | Spotted Quarantine Guard 24675 | -3/Quarantine | Identified EMDS 24685 | -3/Quarantine | Destroyed Quarantine Guard 24697 | -3/Quarantine | Identified exit to Research 24700 | -3/Quarantine | Entered Research 24700 | -2/Research | Evolved 2 slots: Utility x2 24958 | -2/Research | Warped through subspace 25200 | -2/Research | First assault squad dispatched 25207 | -2/Research | Discovered new exit (range 3) 25208 | -2/Research | Discovered new exit (range 9) 25208 | -2/Research | Identified exit to Testing 25221 | -2/Research | Entered Testing 25239 | -2/Testing | Retrieved Zion intel report: Unaware Schematics 25261 | -2/Testing | Protovariant out of control (PH-7DS4OHUWU6) 25471 | -2/Testing | First assault squad dispatched 25490 | -2/Testing | Incoming assault squad redirected 25611 | -2/Testing | Found Prototype Launcher 25611 | -2/Testing | Identified Point Singularity Launcher 25752 | -2/Testing | Warped through subspace 25912 | -2/Testing | Lost 7 parts (1p1n5u) 25918 | -2/Testing | Spotted Fortress 25926 | -2/Testing | Core integrity fell below 50% 25927 | -2/Testing | Incoming investigation squad redirected 25953 | -2/Testing | Lost 6 parts (1n5u) 25957 | -2/Testing | Discovered new exit (range 5) 25959 | -2/Testing | Identified exit to Section 7 25959 | -2/Testing | Entered Section 7 25960 | -2/Section 7 | Sensed 21 artifacts in vicinity 26026 | -2/Section 7 | Retrieved Zion intel report: Trap Installations 26032 | -2/Section 7 | Spotted S7 Guard 26122 | -2/Section 7 | Emitted hypermatrix ping 26127 | -2/Section 7 | Assembled emerged from beneath the floor 26127 | -2/Section 7 | Allies destroyed S7 Guard 26144 | -2/Section 7 | Found Prototype Protection 26144 | -2/Section 7 | Identified Hvy. Regenerative Plating 26209 | -2/Section 7 | First assault squad dispatched 26262 | -2/Section 7 | Incoming assault squad redirected 26328 | -2/Section 7 | System corruption reached 10% 26474 | -2/Section 7 | Core integrity fell below 20% 26524 | -2/Section 7 | Lost 5 parts (1p1n2u1w) 26548 | -2/Section 7 | Found Integrated Singularity Reactor 26548 | -2/Section 7 | Installed Integrated Singularity Reactor, increased core energy generation (+2%) 26617 | -2/Section 7 | Retrieved Zion intel report: Main Access 26617 | -2/Section 7 | Identified exit to Access 26669 | -2/Section 7 | System corruption reached 30% 26754 | -2/Section 7 | Entered Access 26754 | -1/Access | Evolved 2 slots: Utility x1, Weapon x1 26781 | -1/Access | Lost 11 parts (1p3n6u1w) 26922 | -1/Access | Lost 5 parts (1n1u3w) 27004 | -1/Access | Lost 3 parts (2n1w) 27033 | -1/Access | Core integrity fell below 50% 27043 | -1/Access | Emitted hypermatrix ping 27048 | -1/Access | Assembled emerged from beneath the floor 27097 | -1/Access | Assembled emerged from beneath the floor 27134 | -1/Access | Spotted B-99 Colossus 27136 | -1/Access | Assembled emerged from beneath the floor 27144 | -1/Access | Zion Defense Resupply teleported in 27147 | -1/Access | Found Prototype Device 27147 | -1/Access | Identified Exp. Shock Absorption System 27150 | -1/Access | Found Exp. Shock Absorption System 27174 | -1/Access | Incoming investigation squad redirected 27250 | -1/Access | Fabricated Cmb. Linear Gravjet? 27330 | -1/Access | Fabricated Cmb. Linear Gravjet? 27362 | -1/Access | Energy Cycler disabled 27452 | -1/Access | Fabricated S-43 Plague? 27503 | -1/Access | Zion Infowar Resupply teleported in 27522 | -1/Access | Core integrity fell below 20% 27560 | -1/Access | Fabricated S-43 Plague? 27658 | -1/Access | Zion Demo squad teleported in 27686 | -1/Access | Zion Zionite Resupply teleported in 27696 | -1/Access | Found Prototype Protection 27696 | -1/Access | Identified Zio. Shade Armor 27746 | -1/Access | P-80 Master assimilated allied Plague 10f 27748 | -1/Access | Local fabrication network quarantined 27754 | -1/Access | First assault squad dispatched 27762 | -1/Access | Zion Heavy squad teleported in 27770 | -1/Access | Incoming assault squad redirected 27776 | -1/Access | Retrieved Zion intel report: Emergency Access 27781 | -1/Access | Discovered new exit (range 9) 27782 | -1/Access | Retrieved Zion intel report: Prototype Stockpiles 27839 | -1/Access | Assembled emerged from beneath the floor 27926 | -1/Access | Retrieved Zion intel report: Active Garrisons 27997 | -1/Access | Garrison activated, responded to threat 28061 | -1/Access | Assembled emerged from beneath the floor 28221 | -1/Access | Terminal network hard line cut 28308 | -1/Access | Incoming assault squad redirected 28346 | -1/Access | Assembled emerged from beneath the floor 28363 | -1/Access | Assembled emerged from beneath the floor 28418 | -1/Access | Incoming assault squad redirected 28421 | -1/Access | Assembled emerged from beneath the floor 28429 | -1/Access | Found Prototype Launcher 28430 | -1/Access | Identified Ragnarok Missile Launcher 28519 | -1/Access | Assembled emerged from beneath the floor 28563 | -1/Access | Incoming assault squad redirected 28624 | -1/Access | Build established: Messiah-Scout 28655 | -1/Access | Discovered new exit (range 6) 28667 | -1/Access | Identified exit to Surface 28671 | *** | Destroyed 0B10! Last Messages --------------- 28635_ G-73 Enforcer destroyed. 28637_ >> DECODED: Gamma Bomb Trap location. 28637_ Slug penetrates P-80 Master. 28637_ P-80 Master destroyed. 28639_ The unstable cave ceiling collapses. 28644_ Acquired 18 matter. 28644_ Acquired 33 matter. 28646_ Acquired 7 matter. 28646_ Acquired 3 matter. 28647_ Acquired 26 matter. 28653_ Slug penetrates W-44 Eye. 28655_ The Access Shell folds into the floor. 28655_ EXIT=FOUND 28655_ Slug penetrates W-44 Eye. 28656_ >> DECODED: Repair Station location. 28660_ K-01 Serf cleans the Terminal. 28660_ Sealed Heavy Doors breached. 28661_ Slug penetrates Terminal. 28665_ W-44 Eye destroyed. 28667_ EXIT=IDENTIFIED: SURFACE Map ----- +----------------------------------------------------+ | ??????????# #?????#?????????????????????????????? | | ??????????# #???????????????????????????????????? | | ??????????# #???????????????????????????????????? | | ??????????# #???????????????????????????????????? | | ########### ##############??????????????????????? | | """""" # # #??????????????????????? | | """""" # # #??????????????????????? | | """""" # # #??????????????????????? | | """""" # # #??????????????????????? | | """""" # #??????????????????????? | | #u #??????????????????????? | | = #??????????????????????? | | #??????????????????????? | | #??????????????????????? | | #??????????????????????? | | #??????????????????????? | | #??????????????????????? | | ########## k ###########??????????????????????? | | ?????????## #??###???????????????????????????? | | ??????????# ####### ##########??????????????????? | | ??????????# """T""" !%! ""?????????????????? | | ??????????# """ """ t = "???BB????????????? | | ??????????# "????BB????????????? | | ??????????# "??????????????????? | | ??????????# "" "??????????????????? | | ??????????# @" "??????????????????? | | ??????????# a "??????????????????? | | ??????????# "????BB????????????? | | ??????????# "????BB????????????? | | ??????????# "??????????????????? | | ??????????# ####### ##########??????????????????? | | ??????????# #?????###???????????????????????????? | | ??????????# #???????????????????????????????????? | | ??????????# #???????????????????????????????????? | | ??????????# #???????????????????????????????????? | | ??????????+ ????????????????????^???????????????? | | ??????????# ????????????????????????????????????? | | ??????????# ????????????????????????????????????? | | ??????????# ????????o???????????????????????????? | | ??????????# ????????????????????????????????????? | | ??????????# ????????????????????????????????????? | | ??????????# ????????????R???????????????????????? | | ??????????# ????????????????????????????????????? | | ??????????? ????????????????????????????????????? | | ?????????????????????????????????????????????????? | | ?????????????????????????????????????????????????? | | ?????????????????????????????????????????????????? | | ?????????????????????????????????????????????????? | | ?????????????????????????????????????????????????? | | ?????????????????????????????????????????????????? | +----------------------------------------------------+ Best States ------------- Heat Dissipation 90 Coolant Potential 120 Energy Generation 63 Energy Capacity 1380 Matter Stores 300 Matter Capacity 450 Sight Range 23 Robot Scan Range 22 Terrain Scan Range 20 Terrain Scan Density 210 ECM Strength 3 Power Amplification 40 Corruption Prevention 20 Armor Coverage 2700 Resistance: KI 30 Resistance: TH 30 Resistance: EX 75 Resistance: EM 90 Resistance: I 30 Resistance: S 30 Resistance: P 30 Propulsion Shielding 66 Utility Shielding 90 Weapon Shielding 100 Weapon Cycling 25 Melee Speed Boost 50 Evasion (%) 67 Targeting Accuracy 12 Melee Accuracy 12 Core Analysis 10 Recoil Reduction 4 Force Boost 3 Offensive Hacking 40 Defensive Hacking 22 Item Schematics ----------------- None Robot Schematics ------------------ B-74 Champion | -2/Testing | Z-intel R-10 Processor | -2/Testing | Z-intel S-43 Plague | -2/Testing | Z-intel C-55 Analyst | -2/Testing | Z-intel R-06 Scavenger | -2/Testing | Z-intel Fabricated ------------ Cmb. Airjet | x2 | -7/Factory Mni. Smartbomb Launcher | x1 | -6/Factory Cmb. Airjet | x2 | -5/Factory P-70 Sage | x2 | -5/Factory Exp. Utility Shielding | x1 | -5/Factory Exp. Utility Shielding | x1 | -5/Factory Cmb. Airjet | x2 | -5/Factory Cmb. Airjet | x2 | -4/Factory Cmb. Linear Gravjet | x2 | -1/Access | Preloaded Cmb. Linear Gravjet | x2 | -1/Access | Preloaded S-43 Plague | x4 | -1/Access S-43 Plague | x4 | -1/Access Alien Tech Used ----------------- Integrated Reactor Transdimensional Reconstructor Core Reset Matrix Core Cannon Integrated Singularity Reactor Achievements -------------- None Challenges ------------ None Game ------ Seed LongswordCannonAirjet Manual? 0 Play Time 05:25:37 Cumulative 904.4 hours Start 2020.08.29 @ 10:55:50 End 2020.08.29 @ 22:16:08 Sessions 11 Manual Loads 0 Difficulty Rogue Special Mode None Game No. 281 Rogue 281 Adventurer 0 Explorer 0 Win Type 3 Total 57 Types 41/1/4/5/4/1/1 Lore% 97 Gallery% 99 Achievement% 97 Wizard Run 0 Options --------- ASCII 0 Keyboard 1 Movement Numpad Keybinds 0 Fullscreen 1 Font 18/SmallcapsGlow Map View 76x50 Tactical HUD 1 Map Filters NONE Filters NONE Steam 1 RUN: 741a8a8c-6ee8-4d20-83e6-fea4a7b88d1d